Workbook

Sheet AdventureConfig
B1: Id | C1: AreaName | D1: OpenLevel | E1: SystemBoss | F1: SystemBossTime | G1: BaseRewardGroup | H1: RandomRewardGroup | I1: RewardAddShow | J1: UpgradeConsume | K1: UpShow | L1: InvasionBoss | M1: InvasionBossReward | N1: InvasionBossTime | O1: InvasionBossRefresh | P1: InvasionBossHolding
B2: int | C2: string | D2: mut,int#int,1 | E2: int | F2: int | G2: mut,int#int,1 | H2: mut,int#int,2 | I2: mut,int#int,2 | J2: mut,int#int,2 | K2: mut,int#int,1 | L2: mut,int#int,3 | M2: mut,int#int,3 | N2: int | O2: int | P2: int
B3: 2 | C3: 2 | D3: 2 | E3: 2 | F3: 2 | G3: 2 | H3: 2 | I3: 3 | J3: 2 | K3: 3 | L3: 4 | M3: 2 | N3: 2 | O3: 4 | P3: 2
B4: 区域编号 | C4: 区域名称 | D4: 解锁等级 1级#2级#3级 | E4: 关底boss组 只有第一次解锁区域要打boss组 (显示默认第一个怪物的头像） | F4: 关底boss最大战斗时长(s） | G4: 基础奖励组 显示图rewardgroup 1级基础奖励组#2级基础奖励组#3级基础奖励组 | H4: 概率获取掉落组id 1级掉落组1#1级掉落组2|2级掉落组1#2级掉落组2 | I4: 掉落新增 2级掉落新增|3级掉落新增 | J4: 进阶消耗 | K4: 奖励面板上面显示道具id | L4: 外敌入侵怪物组 怪物组id#权重|怪物组id#权重,怪物组id#权重|怪物组id#权重 | M4: 外敌入侵发现者奖励 怪物组id#奖励组id|怪物组id#奖励组id,怪物组id#奖励组id|怪物组id#奖励组id | N4: 外敌入侵最大战斗时长(s） | O4: 外敌入侵刷新时间(s) | P4: 外敌入侵保留时间(s)
A5: 默认值 | B5: 0 | C5: ="" ->  | D5: 0 | E5: 0 | F5: 0 | G5: null | H5: null | I5: null | J5: null | K5: null | N5: 0 | O5: 0 | P5: 0
A6: 正确性校对
A7: 校对值
B8: 1 | C8: 起源之地 | D8: 17#59#73 | E8: 25001 | F8: 300 | G8: 101#151#191 | H8: 91|81|71 | I8: 1511|1512 | J8: 14#1000000|14#5000000 | K8: 14#3 | L8: 601011#400|601012#600,601021#400|601022#600,601031#400|601032#600 | M8: 601011#210101|601012#210101|602011#210201|602012#210201|603011#210301|603012#210301|604011#210401|604012#210401|605011#210501|605012#210501|606011#210601|606012#210601|607011#210701|607012#210701|608011#210801|608012#210801,601021#210102|601022#210102|602021#210202|602022#210202|603021#210302|603022#210302|604021#210402|604022#210402|605021#210502|605022#210502|606021#210602|606022#210602|607021#210702|607022#210702|608021#210802|608022#210802,601031#210103|601032#210103|602031#210203|602032#210203|603031#210303|603032#210303|604031#210403|604032#210403|605031#210503|605032#210503|606031#210603|606032#210603|607031#210703|607032#210703|608031#210803|608032#210803 | N8: 180 | O8: =60*60 -> 3600 | P8: =3600*3 -> 10800
B9: 2 | C9: 遗忘之路 | D9: 25#61#75 | E9: 25002 | F9: 300 | G9: 102#152#192 | H9: 92|82|72 | I9: 1511|1512 | J9: 14#1500000|14#6000000 | K9: 14#3 | L9: 602011#400|602012#600,602021#400|602022#600,602031#400|602032#600 | M9: 601011#210101|601012#210101|602011#210201|602012#210201|603011#210301|603012#210301|604011#210401|604012#210401|605011#210501|605012#210501|606011#210601|606012#210601|607011#210701|607012#210701|608011#210801|608012#210801,601021#210102|601022#210102|602021#210202|602022#210202|603021#210302|603022#210302|604021#210402|604022#210402|605021#210502|605022#210502|606021#210602|606022#210602|607021#210702|607022#210702|608021#210802|608022#210802,601031#210103|601032#210103|602031#210203|602032#210203|603031#210303|603032#210303|604031#210403|604032#210403|605031#210503|605032#210503|606031#210603|606032#210603|607031#210703|607032#210703|608031#210803|608032#210803 | N9: 180 | O9: =60*60 -> 3600 | P9: =3600*3 -> 10800
B10: 3 | C10: 后悔石室 | D10: 32#63#77 | E10: 25003 | F10: 300 | G10: 103#153#193 | H10: 93|83|73 | I10: 1511|1512 | J10: 14#2000000|14#7000000 | K10: 14#3 | L10: 603011#400|603012#600,603021#400|603022#600,603031#400|603032#600 | M10: 601011#210101|601012#210101|602011#210201|602012#210201|603011#210301|603012#210301|604011#210401|604012#210401|605011#210501|605012#210501|606011#210601|606012#210601|607011#210701|607012#210701|608011#210801|608012#210801,601021#210102|601022#210102|602021#210202|602022#210202|603021#210302|603022#210302|604021#210402|604022#210402|605021#210502|605022#210502|606021#210602|606022#210602|607021#210702|607022#210702|608021#210802|608022#210802,601031#210103|601032#210103|602031#210203|602032#210203|603031#210303|603032#210303|604031#210403|604032#210403|605031#210503|605032#210503|606031#210603|606032#210603|607031#210703|607032#210703|608031#210803|608032#210803 | N10: 180 | O10: 3600 | P10: 10800
B11: 4 | C11: 罪罚神殿 | D11: 40#65#79 | E11: 25004 | F11: 300 | G11: 104#154#194 | H11: 94|84|74 | I11: 1511|1512 | J11: 14#2500000|14#8000000 | K11: 14#3 | L11: 604011#400|604012#600,604021#400|604022#600,604031#400|604032#600 | M11: 601011#210101|601012#210101|602011#210201|602012#210201|603011#210301|603012#210301|604011#210401|604012#210401|605011#210501|605012#210501|606011#210601|606012#210601|607011#210701|607012#210701|608011#210801|608012#210801,601021#210102|601022#210102|602021#210202|602022#210202|603021#210302|603022#210302|604021#210402|604022#210402|605021#210502|605022#210502|606021#210602|606022#210602|607021#210702|607022#210702|608021#210802|608022#210802,601031#210103|601032#210103|602031#210203|602032#210203|603031#210303|603032#210303|604031#210403|604032#210403|605031#210503|605032#210503|606031#210603|606032#210603|607031#210703|607032#210703|608031#210803|608032#210803 | N11: 180 | O11: 3600 | P11: 10800
B12: 5 | C12: 祈祷圣所 | D12: 46#67#81 | E12: 25005 | F12: 300 | G12: 105#155#195 | H12: 95|85|75 | I12: 1512|0 | J12: 14#3000000|14#9000000 | K12: 14#3 | L12: 605011#400|605012#600,605021#400|605022#600,605031#400|605032#600 | M12: 601011#210101|601012#210101|602011#210201|602012#210201|603011#210301|603012#210301|604011#210401|604012#210401|605011#210501|605012#210501|606011#210601|606012#210601|607011#210701|607012#210701|608011#210801|608012#210801,601021#210102|601022#210102|602021#210202|602022#210202|603021#210302|603022#210302|604021#210402|604022#210402|605021#210502|605022#210502|606021#210602|606022#210602|607021#210702|607022#210702|608021#210802|608022#210802,601031#210103|601032#210103|602031#210203|602032#210203|603031#210303|603032#210303|604031#210403|604032#210403|605031#210503|605032#210503|606031#210603|606032#210603|607031#210703|607032#210703|608031#210803|608032#210803 | N12: 180 | O12: 3600 | P12: 10800
B13: 6 | C13: 永劫业火 | D13: 50#69#83 | E13: 25006 | F13: 300 | G13: 106#156#196 | H13: 96|86|76 | I13: 1512|0 | J13: 14#3500000|14#10000000 | K13: 14#3 | L13: 606011#400|606012#600,606021#400|606022#600,606031#400|606032#600 | M13: 601011#210101|601012#210101|602011#210201|602012#210201|603011#210301|603012#210301|604011#210401|604012#210401|605011#210501|605012#210501|606011#210601|606012#210601|607011#210701|607012#210701|608011#210801|608012#210801,601021#210102|601022#210102|602021#210202|602022#210202|603021#210302|603022#210302|604021#210402|604022#210402|605021#210502|605022#210502|606021#210602|606022#210602|607021#210702|607022#210702|608021#210802|608022#210802,601031#210103|601032#210103|602031#210203|602032#210203|603031#210303|603032#210303|604031#210403|604032#210403|605031#210503|605032#210503|606031#210603|606032#210603|607031#210703|607032#210703|608031#210803|608032#210803 | N13: 180 | O13: 3600 | P13: 10800
B14: 7 | C14: 无生密室 | D14: 53#70#84 | E14: 25007 | F14: 300 | G14: 107#157#197 | H14: 97|87|77 | I14: 1512|0 | J14: 14#4000000|14#11000000 | K14: 14#3 | L14: 607011#400|607012#600,607021#400|607022#600,607031#400|607032#600 | M14: 601011#210101|601012#210101|602011#210201|602012#210201|603011#210301|603012#210301|604011#210401|604012#210401|605011#210501|605012#210501|606011#210601|606012#210601|607011#210701|607012#210701|608011#210801|608012#210801,601021#210102|601022#210102|602021#210202|602022#210202|603021#210302|603022#210302|604021#210402|604022#210402|605021#210502|605022#210502|606021#210602|606022#210602|607021#210702|607022#210702|608021#210802|608022#210802,601031#210103|601032#210103|602031#210203|602032#210203|603031#210303|603032#210303|604031#210403|604032#210403|605031#210503|605032#210503|606031#210603|606032#210603|607031#210703|607032#210703|608031#210803|608032#210803 | N14: 180 | O14: 3600 | P14: 10800
B15: 8 | C15: 万神黄昏 | D15: 56#71#90 | E15: 25008 | F15: 300 | G15: 108#158#198 | H15: 98|88|78 | I15: 1512|0 | J15: 14#4500000|14#12000000 | K15: 14#3 | L15: 608011#400|608012#600,608021#400|608022#600,608031#400|608032#600 | M15: 601011#210101|601012#210101|602011#210201|602012#210201|603011#210301|603012#210301|604011#210401|604012#210401|605011#210501|605012#210501|606011#210601|606012#210601|607011#210701|607012#210701|608011#210801|608012#210801,601021#210102|601022#210102|602021#210202|602022#210202|603021#210302|603022#210302|604021#210402|604022#210402|605021#210502|605022#210502|606021#210602|606022#210602|607021#210702|607022#210702|608021#210802|608022#210802,601031#210103|601032#210103|602031#210203|602032#210203|603031#210303|603032#210303|604031#210403|604032#210403|605031#210503|605032#210503|606031#210603|606032#210603|607031#210703|607032#210703|608031#210803|608032#210803 | N15: 180 | O15: 3600 | P15: 10800

Sheet 辅助设计表
A1: 挂机玩法 | B1: 好友容量
B2: 80
B3: 玩家好友数目 | E3: 1级（2个） | F3: 2级（2个） | G3: 3级（3个） | H3: 3级权重 | J3: 秘境进阶所需材料 | K3: 开启等级 | M3: 2级 | N3: 开启等级 | P3: 3级
B4: =B2*0.7 -> 56 | D4: 秘境1 | E4: 4（1） | F4: 4（1） | G4: 4（1）4（2） | H4: 442 | J4: 秘境1 | K4: =MID(AdventureConfig!D8,4,2) -> 59 | L4: 55 | M4: =L4*2 -> 110 | N4: =RIGHT(AdventureConfig!D8,2) -> 73 | O4: 70 | P4: =O4*2 -> 140
B5: 活跃好友数目 | D5: 秘境2 | E5: 4（1） | F5: 4（1） | G5: 4（1）4（2） | H5: 442 | J5: 秘境2 | K5: =MID(AdventureConfig!D9,4,2) -> 61 | L5: 60 | M5: =L5*2 -> 120 | N5: =RIGHT(AdventureConfig!D9,2) -> 75 | O5: 70 | P5: =O5*2 -> 140
B6: =INT(B4*0.6) -> 33 | D6: 秘境3 | E6: 4（1） | F6: 4（1） | G6: 4（1）4（2） | H6: 442 | J6: 秘境3 | K6: =MID(AdventureConfig!D10,4,2) -> 63 | L6: 60 | M6: 120 | N6: =RIGHT(AdventureConfig!D10,2) -> 77 | O6: 70 | P6: 140
B7: 每个秘境怪物出现概率 | D7: 秘境4 | E7: 4（2） | F7: 4（2） | G7: 4（2）5 | H7: 442 | J7: 秘境4 | K7: =MID(AdventureConfig!D11,4,2) -> 65 | L7: 65 | M7: 130 | N7: =RIGHT(AdventureConfig!D11,2) -> 79 | O7: 70 | P7: 140
B8: =0.0278*6 -> 0.1668 | D8: 秘境5 | E8: 4（2） | F8: 4（2） | G8: 4（2）5 | H8: 442 | J8: 秘境5 | K8: =MID(AdventureConfig!D12,4,2) -> 67 | L8: 65 | M8: 130 | N8: =RIGHT(AdventureConfig!D12,2) -> 81 | O8: 75 | P8: 150
B9: =B8*10000 -> 1668 | D9: 秘境6 | E9: 5（2）5（2） | F9: 5（2）5（2） | G9: 5（2）5（2） | H9: 442 | J9: 秘境6 | K9: =MID(AdventureConfig!D13,4,2) -> 69 | L9: 65 | M9: 130 | N9: =RIGHT(AdventureConfig!D13,2) -> 83 | O9: 75 | P9: 150
D10: 秘境7 | E10: 5（2）5（2） | F10: 5（2）5（2） | G10: 5（2）5（2） | H10: 442 | J10: 秘境7 | K10: =MID(AdventureConfig!D14,4,2) -> 70 | L10: 70 | M10: 140 | N10: =RIGHT(AdventureConfig!D14,2) -> 84 | O10: 75 | P10: 150
D11: 秘境8 | E11: 5（2）5（2） | F11: 5（2）5（2） | G11: 5（2）5（2） | H11: 442 | J11: 秘境8 | K11: =MID(AdventureConfig!D15,4,2) -> 71 | L11: 70 | M11: 140 | N11: =RIGHT(AdventureConfig!D15,2) -> 90 | O11: 75 | P11: 150
B12: 共8个秘境
B13: 每人可看到秘境 | C13: =24*8+8 -> 200 | J13: 总数 | K13: =SUM(M4:M11,P4:P11) -> 2180
A17: 奖励 | C17: 发现奖励 | D17: 钻石 | F17: 金币 | H17: 妖魂魔戒
C19: 击杀奖励 | D19: 钻石 | F19: 灵丹 | H19: 归元髓液
C22: 排行榜奖励 | D22: 符文 | F22: 铁矿石 | H22: 妖魂魔戒
D23: 橙
D24: 紫
C29: 一级 | H29: 二级 | M29: 三级
B30: 秘境 | C30: 怪1 | D30: 怪1概率 | E30: 怪2 | F30: 怪2概率 | G30: 0 | H30: 怪1 | I30: 怪1概率 | J30: 怪2 | K30: 怪2概率 | L30: 0 | M30: 怪1 | N30: 怪1概率 | O30: 怪2 | P30: 怪2概率 | Q30: 怪3 | R30: 怪3概率 | S30: 0
A31: 20 | B31: 1 | C31: 601011 | D31: =INT(2/A31/B31*10000) -> 1000 | G31: =10000-D31-F31 -> 9000 | H31: 601021 | I31: =D38*2 -> 124 | L31: =10000-I31-K31 -> 9876 | M31: 601031 | N31: =INT(I31/3) -> 41 | O31: =M31+1 -> 601032 | P31: =N31 -> 41 | Q31: =O31+1 -> 601033 | R31: =P31 -> 41 | S31: =10000-P31-R31-N31 -> 9877 | T31: =_xlfn.TEXTJOIN("#",TRUE,C31:D31) -> 601011#1000 | U31: =_xlfn.TEXTJOIN("#",TRUE,E31:F31) ->  | V31: =_xlfn.TEXTJOIN("#",TRUE,$G$30,G31) -> 0#9000 | W31: =_xlfn.TEXTJOIN("#",TRUE,H31:I31) -> 601021#124 | X31: =_xlfn.TEXTJOIN("#",TRUE,J31:K31) ->  | Y31: =_xlfn.TEXTJOIN("#",TRUE,$L$30,L31) -> 0#9876 | Z31: =_xlfn.TEXTJOIN("#",TRUE,M31:N31) -> 601031#41 | AA31: =_xlfn.TEXTJOIN("#",TRUE,O31:P31) -> 601032#41 | AB31: =_xlfn.TEXTJOIN("#",TRUE,Q31:R31) -> 601033#41 | AC31: =_xlfn.TEXTJOIN("#",TRUE,$S$30,S31) -> 0#9877 | AD31: =_xlfn.TEXTJOIN("|",TRUE,T31:V31) -> 601011#1000|0#9000 | AE31: =_xlfn.TEXTJOIN("|",TRUE,W31:Y31) -> 601021#124|0#9876 | AF31: =_xlfn.TEXTJOIN("|",TRUE,Z31:AC31) -> 601031#41|601032#41|601033#41|0#9877 | AG31: =_xlfn.TEXTJOIN(",",TRUE,AD31:AF31) -> 601011#1000|0#9000,601021#124|0#9876,601031#41|601032#41|601033#41|0#9877
A32: =A31 -> 20 | B32: =B31+1 -> 2 | C32: =C31+1000 -> 602011 | D32: =INT(2/A32/B32*10000/2) -> 250 | E32: =C32+1 -> 602012 | F32: =D32 -> 250 | G32: =10000-D32-F32 -> 9500 | H32: =C32+10 -> 602021 | I32: =D38 -> 62 | J32: 602022 | K32: =I32 -> 62 | L32: =10000-I32-K32 -> 9876 | M32: 602031 | N32: =N31 -> 41 | O32: =M32+1 -> 602032 | P32: =N32 -> 41 | Q32: =O32+1 -> 602033 | R32: =P32 -> 41 | S32: =10000-P32-R32-N32 -> 9877 | T32: =_xlfn.TEXTJOIN("#",TRUE,C32:D32) -> 602011#250 | U32: =_xlfn.TEXTJOIN("#",TRUE,E32:F32) -> 602012#250 | V32: =_xlfn.TEXTJOIN("#",TRUE,$G$30,G32) -> 0#9500 | W32: =_xlfn.TEXTJOIN("#",TRUE,H32:I32) -> 602021#62 | X32: =_xlfn.TEXTJOIN("#",TRUE,J32:K32) -> 602022#62 | Y32: =_xlfn.TEXTJOIN("#",TRUE,$L$30,L32) -> 0#9876 | Z32: =_xlfn.TEXTJOIN("#",TRUE,M32:N32) -> 602031#41 | AA32: =_xlfn.TEXTJOIN("#",TRUE,O32:P32) -> 602032#41 | AB32: =_xlfn.TEXTJOIN("#",TRUE,Q32:R32) -> 602033#41 | AC32: =_xlfn.TEXTJOIN("#",TRUE,$S$30,S32) -> 0#9877 | AD32: =_xlfn.TEXTJOIN("|",TRUE,T32:V32) -> 602011#250|602012#250|0#9500 | AE32: =_xlfn.TEXTJOIN("|",TRUE,W32:Y32) -> 602021#62|602022#62|0#9876 | AF32: =_xlfn.TEXTJOIN("|",TRUE,Z32:AC32) -> 602031#41|602032#41|602033#41|0#9877 | AG32: =_xlfn.TEXTJOIN(",",TRUE,AD32:AF32) -> 602011#250|602012#250|0#9500,602021#62|602022#62|0#9876,602031#41|602032#41|602033#41|0#9877
A33: =A32 -> 20 | B33: =B32+1 -> 3 | C33: =C32+1000 -> 603011 | D33: =INT(2/A33/B33*10000/2) -> 166 | E33: =C33+1 -> 603012 | F33: =D33 -> 166 | G33: 9668 | H33: =C33+10 -> 603021 | I33: =I32 -> 62 | J33: =E33+10 -> 603022 | K33: =I33 -> 62 | L33: 9876 | M33: =H33+10 -> 603031 | N33: =N32 -> 41 | O33: =M33+1 -> 603032 | P33: 41 | Q33: =O33+1 -> 603033 | R33: 41 | S33: 9877 | T33: 603011#166 | U33: 603012#166 | V33: 0#9668 | W33: 603021#62 | X33: 603022#62 | Y33: 0#9876 | Z33: 603031#41 | AA33: 603032#41 | AB33: 603033#41 | AC33: 0#9877 | AD33: 603011#166|603012#166|0#9668 | AE33: 603021#62|603022#62|0#9876 | AF33: 603031#41|603032#41|603033#41|0#9877 | AG33: 603011#166|603012#166|0#9668,603021#62|603022#62|0#9876,603031#41|603032#41|603033#41|0#9877
A34: 20 | B34: 4 | C34: 604011 | D34: 125 | E34: 604012 | F34: 125 | G34: 9750 | H34: 604021 | I34: 62 | J34: 604022 | K34: 62 | L34: 9876 | M34: 604031 | N34: 41 | O34: 604032 | P34: 41 | Q34: 604033 | R34: 41 | S34: 9877 | T34: 604011#125 | U34: 604012#125 | V34: 0#9750 | W34: 604021#62 | X34: 604022#62 | Y34: 0#9876 | Z34: 604031#41 | AA34: 604032#41 | AB34: 604033#41 | AC34: 0#9877 | AD34: 604011#125|604012#125|0#9750 | AE34: 604021#62|604022#62|0#9876 | AF34: 604031#41|604032#41|604033#41|0#9877 | AG34: 604011#125|604012#125|0#9750,604021#62|604022#62|0#9876,604031#41|604032#41|604033#41|0#9877
A35: 20 | B35: 5 | C35: 605011 | D35: 100 | E35: 605012 | F35: 100 | G35: 9800 | H35: 605021 | I35: 62 | J35: 605022 | K35: 62 | L35: 9876 | M35: 605031 | N35: 41 | O35: 605032 | P35: 41 | Q35: 605033 | R35: 41 | S35: 9877 | T35: 605011#100 | U35: 605012#100 | V35: 0#9800 | W35: 605021#62 | X35: 605022#62 | Y35: 0#9876 | Z35: 605031#41 | AA35: 605032#41 | AB35: 605033#41 | AC35: 0#9877 | AD35: 605011#100|605012#100|0#9800 | AE35: 605021#62|605022#62|0#9876 | AF35: 605031#41|605032#41|605033#41|0#9877 | AG35: 605011#100|605012#100|0#9800,605021#62|605022#62|0#9876,605031#41|605032#41|605033#41|0#9877
A36: 20 | B36: 6 | C36: 606011 | D36: 83 | E36: 606012 | F36: 83 | G36: 9834 | H36: 606021 | I36: 62 | J36: 606022 | K36: 62 | L36: 9876 | M36: 606031 | N36: 41 | O36: 606032 | P36: 41 | Q36: 606033 | R36: 41 | S36: 9877 | T36: 606011#83 | U36: 606012#83 | V36: 0#9834 | W36: 606021#62 | X36: 606022#62 | Y36: 0#9876 | Z36: 606031#41 | AA36: 606032#41 | AB36: 606033#41 | AC36: 0#9877 | AD36: 606011#83|606012#83|0#9834 | AE36: 606021#62|606022#62|0#9876 | AF36: 606031#41|606032#41|606033#41|0#9877 | AG36: 606011#83|606012#83|0#9834,606021#62|606022#62|0#9876,606031#41|606032#41|606033#41|0#9877
A37: 20 | B37: 7 | C37: 607011 | D37: 71 | E37: 607012 | F37: 71 | G37: 9858 | H37: 607021 | I37: 62 | J37: 607022 | K37: 62 | L37: 9876 | M37: 607031 | N37: 41 | O37: 607032 | P37: 41 | Q37: 607033 | R37: 41 | S37: 9877 | T37: 607011#71 | U37: 607012#71 | V37: 0#9858 | W37: 607021#62 | X37: 607022#62 | Y37: 0#9876 | Z37: 607031#41 | AA37: 607032#41 | AB37: 607033#41 | AC37: 0#9877 | AD37: 607011#71|607012#71|0#9858 | AE37: 607021#62|607022#62|0#9876 | AF37: 607031#41|607032#41|607033#41|0#9877 | AG37: 607011#71|607012#71|0#9858,607021#62|607022#62|0#9876,607031#41|607032#41|607033#41|0#9877
A38: 20 | B38: 8 | C38: 608011 | D38: 62 | E38: 608012 | F38: 62 | G38: 9876 | H38: 608021 | I38: 62 | J38: 608022 | K38: 62 | L38: 9876 | M38: 608031 | N38: 41 | O38: 608032 | P38: 41 | Q38: 608033 | R38: 41 | S38: 9877 | T38: 608011#62 | U38: 608012#62 | V38: 0#9876 | W38: 608021#62 | X38: 608022#62 | Y38: 0#9876 | Z38: 608031#41 | AA38: 608032#41 | AB38: 608033#41 | AC38: 0#9877 | AD38: 608011#62|608012#62|0#9876 | AE38: 608021#62|608022#62|0#9876 | AF38: 608031#41|608032#41|608033#41|0#9877 | AG38: 608011#62|608012#62|0#9876,608021#62|608022#62|0#9876,608031#41|608032#41|608033#41|0#9877

Sheet 奖励组表
B1: 奖励id | C1: 奖励内容 | D1: 获取概率 | E1: 成长概率 针对特殊处理，如果不获取，则获取概率增加 | F1: 获取数量最小值 | G1: 获取数量最大值 | H1: 备注 物品名称 | I1: 备注 | J1: 备注 | K1: 校验
B2: 100401 | C2: 11001 | D2: =ROUND(辅助设计表!#REF!/23,4)*10000 ->  | E2: 1 | F2: 1 | G2: 1 | H2: 石御霏碎片 | I2: 5星 | J2: 4——5关发现者奖励
B3: =B2+1 -> 100402 | C3: 11002 | D3: =ROUND(辅助设计表!#REF!/23,4)*10000 ->  | E3: 1 | F3: 1 | G3: 1 | H3: 楚恒碎片 | I3: 5星 | J3: 4——5关发现者奖励
B4: =B3+1 -> 100403 | C4: 11003 | D4: =ROUND(辅助设计表!#REF!/23,4)*10000 ->  | E4: 1 | F4: 1 | G4: 1 | H4: 夏侯鸿天碎片 | I4: 5星 | J4: 4——5关发现者奖励
B5: 100404 | C5: 11004 | D5: =ROUND(辅助设计表!#REF!/23,4)*10000 ->  | E5: 1 | F5: 1 | G5: 1 | H5: 应茹碎片 | I5: 5星 | J5: 4——5关发现者奖励
B6: 100405 | C6: 11005 | D6: =ROUND(辅助设计表!#REF!/23,4)*10000 ->  | E6: 1 | F6: 1 | G6: 1 | H6: 端木葵碎片 | I6: 5星 | J6: 4——5关发现者奖励
B7: 100406 | C7: 11006 | D7: =ROUND(辅助设计表!#REF!/23,4)*10000 ->  | E7: 1 | F7: 1 | G7: 1 | H7: 兰卿碎片 | I7: 5星 | J7: 4——5关发现者奖励
B8: 100407 | C8: 11007 | D8: =ROUND(辅助设计表!#REF!/23,4)*10000 ->  | E8: 1 | F8: 1 | G8: 1 | H8: 靖之碎片 | I8: 5星 | J8: 4——5关发现者奖励
B9: 100408 | C9: 11008 | D9: =ROUND(辅助设计表!#REF!/23,4)*10000 ->  | E9: 1 | F9: 1 | G9: 1 | H9: 白梦凡碎片 | I9: 5星 | J9: 4——5关发现者奖励
B10: 100409 | C10: 11009 | D10: =ROUND(辅助设计表!#REF!/23,4)*10000 ->  | E10: 1 | F10: 1 | G10: 1 | H10: 祁菲碎片 | I10: 5星 | J10: 4——5关发现者奖励
B11: 100410 | C11: 11010 | D11: =ROUND(辅助设计表!#REF!/23,4)*10000 ->  | E11: 1 | F11: 1 | G11: 1 | H11: 颜祈佳碎片 | I11: 5星 | J11: 4——5关发现者奖励
B12: 100411 | C12: 11011 | D12: =ROUND(辅助设计表!#REF!/23,4)*10000 ->  | E12: 1 | F12: 1 | G12: 1 | H12: 叶延碎片 | I12: 5星 | J12: 4——5关发现者奖励
B13: 100412 | C13: 11012 | D13: =ROUND(辅助设计表!#REF!/23,4)*10000 ->  | E13: 1 | F13: 1 | G13: 1 | H13: 慕容子期碎片 | I13: 5星 | J13: 4——5关发现者奖励
B14: 100413 | C14: 11013 | D14: =ROUND(辅助设计表!#REF!/23,4)*10000 ->  | E14: 1 | F14: 1 | G14: 1 | H14: 云灵碎片 | I14: 5星 | J14: 4——5关发现者奖励
B15: 100414 | C15: 11014 | D15: =ROUND(辅助设计表!#REF!/23,4)*10000 ->  | E15: 1 | F15: 1 | G15: 1 | H15: 耿陶碎片 | I15: 5星 | J15: 4——5关发现者奖励
B16: 100415 | C16: 11015 | D16: =ROUND(辅助设计表!#REF!/23,4)*10000 ->  | E16: 1 | F16: 1 | G16: 1 | H16: 云碎片 | I16: 5星 | J16: 4——5关发现者奖励
B17: 100416 | C17: 11016 | D17: =ROUND(辅助设计表!#REF!/23,4)*10000 ->  | E17: 1 | F17: 1 | G17: 1 | H17: 岑以航碎片 | I17: 5星 | J17: 4——5关发现者奖励
B18: 100417 | C18: 11017 | D18: =ROUND(辅助设计表!#REF!/23,4)*10000 ->  | E18: 1 | F18: 1 | G18: 1 | H18: 楚秋碎片 | I18: 5星 | J18: 4——5关发现者奖励
B19: 100418 | C19: 11018 | D19: =ROUND(辅助设计表!#REF!/23,4)*10000 ->  | E19: 1 | F19: 1 | G19: 1 | H19: 朱贺碎片 | I19: 5星 | J19: 4——5关发现者奖励
B20: 100419 | C20: 11019 | D20: =ROUND(辅助设计表!#REF!/23,4)*10000 ->  | E20: 1 | F20: 1 | G20: 1 | H20: 孔谦碎片 | I20: 5星 | J20: 4——5关发现者奖励
B21: 100420 | C21: 11020 | D21: =ROUND(辅助设计表!#REF!/23,4)*10000 ->  | E21: 1 | F21: 1 | G21: 1 | H21: 颜无雍碎片 | I21: 5星 | J21: 4——5关发现者奖励
B22: 100421 | C22: 11021 | D22: =ROUND(辅助设计表!#REF!/23,4)*10000 ->  | E22: 1 | F22: 1 | G22: 1 | H22: 岑以征碎片 | I22: 5星 | J22: 4——5关发现者奖励
B23: 100422 | C23: 11022 | D23: =ROUND(辅助设计表!#REF!/23,4)*10000 ->  | E23: 1 | F23: 1 | G23: 1 | H23: 颜无诡碎片 | I23: 5星 | J23: 4——5关发现者奖励
B24: 100423 | C24: 11023 | D24: =ROUND(辅助设计表!#REF!/23,4)*10000 ->  | E24: 1 | F24: 1 | G24: 1 | H24: 荧荧碎片 | I24: 5星 | J24: 4——5关发现者奖励
B25: 100424 | C25: 11024 | D25: =ROUND(辅助设计表!$F$17/23,4)*10000 ->  | E25: 1 | F25: 1 | G25: 1 | H25: 许槿然碎片 | I25: 4星 | J25: 4——5关发现者奖励
B26: 100425 | C26: 11025 | D26: =ROUND(辅助设计表!$F$17/23,4)*10000 ->  | E26: 1 | F26: 1 | G26: 1 | H26: 唐萱碎片 | I26: 4星 | J26: 4——5关发现者奖励
B27: 100426 | C27: 11026 | D27: =ROUND(辅助设计表!$F$17/23,4)*10000 ->  | E27: 1 | F27: 1 | G27: 1 | H27: 孙晴碎片 | I27: 4星 | J27: 4——5关发现者奖励
B28: 100427 | C28: 11027 | D28: =ROUND(辅助设计表!$F$17/23,4)*10000 ->  | E28: 1 | F28: 1 | G28: 1 | H28: 宁月碎片 | I28: 4星 | J28: 4——5关发现者奖励
B29: 100428 | C29: 11028 | D29: =ROUND(辅助设计表!$F$17/23,4)*10000 ->  | E29: 1 | F29: 1 | G29: 1 | H29: 紫川碎片 | I29: 4星 | J29: 4——5关发现者奖励
B30: 100429 | C30: 11029 | D30: =ROUND(辅助设计表!$F$17/23,4)*10000 ->  | E30: 1 | F30: 1 | G30: 1 | H30: 珺妍碎片 | I30: 4星 | J30: 4——5关发现者奖励
B31: 100430 | C31: 11030 | D31: =ROUND(辅助设计表!$F$17/23,4)*10000 ->  | E31: 1 | F31: 1 | G31: 1 | H31: 瑶瑶碎片 | I31: 4星 | J31: 4——5关发现者奖励
B32: 100431 | C32: 11031 | D32: =ROUND(辅助设计表!$F$17/23,4)*10000 ->  | E32: 1 | F32: 1 | G32: 1 | H32: 贾裴武碎片 | I32: 4星 | J32: 4——5关发现者奖励
B33: 100432 | C33: 11032 | D33: =ROUND(辅助设计表!$F$17/23,4)*10000 ->  | E33: 1 | F33: 1 | G33: 1 | H33: 雷燕碎片 | I33: 4星 | J33: 4——5关发现者奖励
B34: 100433 | C34: 11033 | D34: =ROUND(辅助设计表!$F$17/23,4)*10000 ->  | E34: 1 | F34: 1 | G34: 1 | H34: 辛夷碎片 | I34: 4星 | J34: 4——5关发现者奖励
B35: 100434 | C35: 11034 | D35: =ROUND(辅助设计表!$F$17/23,4)*10000 ->  | E35: 1 | F35: 1 | G35: 1 | H35: 伏冥碎片 | I35: 4星 | J35: 4——5关发现者奖励
B36: =B35+1 -> 100435 | C36: 11035 | D36: =ROUND(辅助设计表!$F$17/23,4)*10000 ->  | E36: 1 | F36: 1 | G36: 1 | H36: 司空染碎片 | I36: 4星 | J36: 4——5关发现者奖励
B37: 100436 | C37: 11036 | D37: =ROUND(辅助设计表!$F$17/23,4)*10000 ->  | E37: 1 | F37: 1 | G37: 1 | H37: 解幽碎片 | I37: 4星 | J37: 4——5关发现者奖励
B38: 100437 | C38: 11037 | D38: =ROUND(辅助设计表!$F$17/23,4)*10000 ->  | E38: 1 | F38: 1 | G38: 1 | H38: 薛苓碎片 | I38: 4星 | J38: 4——5关发现者奖励
B39: 100438 | C39: 11038 | D39: =ROUND(辅助设计表!$F$17/23,4)*10000 ->  | E39: 1 | F39: 1 | G39: 1 | H39: 常申碎片 | I39: 4星 | J39: 4——5关发现者奖励
B40: 100439 | C40: 11039 | D40: =ROUND(辅助设计表!$F$17/23,4)*10000 ->  | E40: 1 | F40: 1 | G40: 1 | H40: 呼延腾碎片 | I40: 4星 | J40: 4——5关发现者奖励
B41: 100440 | C41: 11040 | D41: =ROUND(辅助设计表!$F$17/23,4)*10000 ->  | E41: 1 | F41: 1 | G41: 1 | H41: 冉宜碎片 | I41: 4星 | J41: 4——5关发现者奖励
B42: 100441 | C42: 11041 | D42: =ROUND(辅助设计表!$F$17/23,4)*10000 ->  | E42: 1 | F42: 1 | G42: 1 | H42: 孟灿碎片 | I42: 4星 | J42: 4——5关发现者奖励
B43: 100442 | C43: 11042 | D43: =ROUND(辅助设计表!$F$17/23,4)*10000 ->  | E43: 1 | F43: 1 | G43: 1 | H43: 叶辽碎片 | I43: 4星 | J43: 4——5关发现者奖励
B44: 100443 | C44: 11043 | D44: =ROUND(辅助设计表!$F$17/23,4)*10000 ->  | E44: 1 | F44: 1 | G44: 1 | H44: 乌廉碎片 | I44: 4星 | J44: 4——5关发现者奖励
B45: 100444 | C45: 11044 | D45: =ROUND(辅助设计表!$F$17/23,4)*10000 ->  | E45: 1 | F45: 1 | G45: 1 | H45: 苏进碎片 | I45: 4星 | J45: 4——5关发现者奖励
B46: 100445 | C46: 11045 | D46: =ROUND(辅助设计表!$F$17/23,4)*10000 ->  | E46: 1 | F46: 1 | G46: 1 | H46: 苏可碎片 | I46: 4星 | J46: 4——5关发现者奖励
B47: 100446 | C47: 11046 | D47: =ROUND(辅助设计表!$F$17/23,4)*10000 ->  | E47: 1 | F47: 1 | G47: 1 | H47: 林越碎片 | I47: 4星 | J47: 4——5关发现者奖励
B48: 100447 | C48: =y异妖配件!A1 -> 6001 | D48: =ROUND(辅助设计表!$I$17/9,4)*10000 -> 0 | E48: 1 | F48: 1 | G48: 1 | H48: =y异妖配件!B1 -> 刀捞鬼1 | I48: 紫色 | J48: 4——5关发现者奖励
B49: 100448 | C49: =y异妖配件!A2 -> 6002 | D49: =ROUND(辅助设计表!$I$17/9,4)*10000 -> 0 | E49: 1 | F49: 1 | G49: 1 | H49: =y异妖配件!B2 -> 刀捞鬼2 | I49: 紫色 | J49: 4——5关发现者奖励
B50: 100449 | C50: =y异妖配件!A3 -> 6003 | D50: =ROUND(辅助设计表!$I$17/9,4)*10000 -> 0 | E50: 1 | F50: 1 | G50: 1 | H50: =y异妖配件!B3 -> 刀捞鬼3 | I50: 紫色 | J50: 4——5关发现者奖励
B51: 100450 | C51: =y异妖配件!A4 -> 6004 | D51: =ROUND(辅助设计表!$I$17/9,4)*10000 -> 0 | E51: 1 | F51: 1 | G51: 1 | H51: =y异妖配件!B4 -> 蒸笼仔1 | I51: 紫色 | J51: 4——5关发现者奖励
B52: 100451 | C52: =y异妖配件!A5 -> 6005 | D52: =ROUND(辅助设计表!$I$17/9,4)*10000 -> 0 | E52: 1 | F52: 1 | G52: 1 | H52: =y异妖配件!B5 -> 蒸笼仔2 | I52: 紫色 | J52: 4——5关发现者奖励
B53: 100452 | C53: =y异妖配件!A6 -> 6006 | D53: =ROUND(辅助设计表!$I$17/9,4)*10000 -> 0 | E53: 1 | F53: 1 | G53: 1 | H53: =y异妖配件!B6 -> 蒸笼仔3 | I53: 紫色 | J53: 4——5关发现者奖励
B54: 100453 | C54: =y异妖配件!A7 -> 6007 | D54: =ROUND(辅助设计表!$I$17/9,4)*10000 -> 0 | E54: 1 | F54: 1 | G54: 1 | H54: =y异妖配件!B7 -> 横公1 | I54: 紫色 | J54: 4——5关发现者奖励
B55: 100454 | C55: =y异妖配件!A8 -> 6008 | D55: =ROUND(辅助设计表!$I$17/9,4)*10000 -> 0 | E55: 1 | F55: 1 | G55: 1 | H55: =y异妖配件!B8 -> 横公2 | I55: 紫色 | J55: 4——5关发现者奖励
B56: 100455 | C56: =y异妖配件!A9 -> 6009 | D56: =ROUND(辅助设计表!$I$17/9,4)*10000 -> 0 | E56: 1 | F56: 1 | G56: 1 | H56: =y异妖配件!B9 -> 横公3 | I56: 紫色 | J56: 4——5关发现者奖励
B57: 100456 | C57: =y异妖配件!A10 -> 6013 | D57: =ROUND(辅助设计表!#REF!/8,4)*10000 ->  | E57: 1 | F57: 1 | G57: 1 | H57: =y异妖配件!B10 -> 火鼠1 | I57: 橙色 | J57: 4——5关发现者奖励
B58: 100457 | C58: =y异妖配件!A11 -> 6014 | D58: =ROUND(辅助设计表!#REF!/8,4)*10000 ->  | E58: 1 | F58: 1 | G58: 1 | H58: =y异妖配件!B11 -> 火鼠2 | I58: 橙色 | J58: 4——5关发现者奖励
B59: 100458 | C59: =y异妖配件!A12 -> 6015 | D59: =ROUND(辅助设计表!#REF!/8,4)*10000 ->  | E59: 1 | F59: 1 | G59: 1 | H59: =y异妖配件!B12 -> 火鼠3 | I59: 橙色 | J59: 4——5关发现者奖励
B60: 100459 | C60: =y异妖配件!A13 -> 6016 | D60: =ROUND(辅助设计表!#REF!/8,4)*10000 ->  | E60: 1 | F60: 1 | G60: 1 | H60: =y异妖配件!B13 -> 火鼠4 | I60: 橙色 | J60: 4——5关发现者奖励
B61: 100460 | C61: =y异妖配件!A14 -> 6017 | D61: =ROUND(辅助设计表!#REF!/8,4)*10000 ->  | E61: 1 | F61: 1 | G61: 1 | H61: =y异妖配件!B14 -> 拦面叟1 | I61: 橙色 | J61: 4——5关发现者奖励
B62: 100461 | C62: =y异妖配件!A15 -> 6018 | D62: =ROUND(辅助设计表!#REF!/8,4)*10000 ->  | E62: 1 | F62: 1 | G62: 1 | H62: =y异妖配件!B15 -> 拦面叟2 | I62: 橙色 | J62: 4——5关发现者奖励
B63: 100462 | C63: =y异妖配件!A16 -> 6019 | D63: =ROUND(辅助设计表!#REF!/8,4)*10000 ->  | E63: 1 | F63: 1 | G63: 1 | H63: =y异妖配件!B16 -> 拦面叟3 | I63: 橙色 | J63: 4——5关发现者奖励
B64: 100463 | C64: =y异妖配件!A17 -> 6020 | D64: =ROUND(辅助设计表!#REF!/8,4)*10000 ->  | E64: 1 | F64: 1 | G64: 1 | H64: =y异妖配件!B17 -> 拦面叟4 | I64: 橙色 | J64: 4——5关发现者奖励
B65: 100101 | C65: 11024 | D65: =ROUND(辅助设计表!#REF!/23,4)*10000 ->  | E65: 1 | F65: 1 | G65: 1 | H65: 许槿然碎片 | I65: 4星 | J65: 1——3关发现者奖励
B66: 100102 | C66: 11025 | D66: =ROUND(辅助设计表!#REF!/23,4)*10000 ->  | E66: 1 | F66: 1 | G66: 1 | H66: 唐萱碎片 | I66: 4星 | J66: 1——3关发现者奖励
B67: 100103 | C67: 11026 | D67: =ROUND(辅助设计表!#REF!/23,4)*10000 ->  | E67: 1 | F67: 1 | G67: 1 | H67: 孙晴碎片 | I67: 4星 | J67: 1——3关发现者奖励
B68: 100104 | C68: 11027 | D68: =ROUND(辅助设计表!#REF!/23,4)*10000 ->  | E68: 1 | F68: 1 | G68: 1 | H68: 宁月碎片 | I68: 4星 | J68: 1——3关发现者奖励
B69: 100105 | C69: 11028 | D69: =ROUND(辅助设计表!#REF!/23,4)*10000 ->  | E69: 1 | F69: 1 | G69: 1 | H69: 紫川碎片 | I69: 4星 | J69: 1——3关发现者奖励
B70: 100106 | C70: 11029 | D70: =ROUND(辅助设计表!#REF!/23,4)*10000 ->  | E70: 1 | F70: 1 | G70: 1 | H70: 珺妍碎片 | I70: 4星 | J70: 1——3关发现者奖励
B71: 100107 | C71: 11030 | D71: =ROUND(辅助设计表!#REF!/23,4)*10000 ->  | E71: 1 | F71: 1 | G71: 1 | H71: 瑶瑶碎片 | I71: 4星 | J71: 1——3关发现者奖励
B72: 100108 | C72: 11031 | D72: =ROUND(辅助设计表!#REF!/23,4)*10000 ->  | E72: 1 | F72: 1 | G72: 1 | H72: 贾裴武碎片 | I72: 4星 | J72: 1——3关发现者奖励
B73: 100109 | C73: 11032 | D73: =ROUND(辅助设计表!#REF!/23,4)*10000 ->  | E73: 1 | F73: 1 | G73: 1 | H73: 雷燕碎片 | I73: 4星 | J73: 1——3关发现者奖励
B74: 100110 | C74: 11033 | D74: =ROUND(辅助设计表!#REF!/23,4)*10000 ->  | E74: 1 | F74: 1 | G74: 1 | H74: 辛夷碎片 | I74: 4星 | J74: 1——3关发现者奖励
B75: 100111 | C75: 11034 | D75: =ROUND(辅助设计表!#REF!/23,4)*10000 ->  | E75: 1 | F75: 1 | G75: 1 | H75: 伏冥碎片 | I75: 4星 | J75: 1——3关发现者奖励
B76: 100112 | C76: 11035 | D76: =ROUND(辅助设计表!#REF!/23,4)*10000 ->  | E76: 1 | F76: 1 | G76: 1 | H76: 司空染碎片 | I76: 4星 | J76: 1——3关发现者奖励
B77: 100113 | C77: 11036 | D77: =ROUND(辅助设计表!#REF!/23,4)*10000 ->  | E77: 1 | F77: 1 | G77: 1 | H77: 解幽碎片 | I77: 4星 | J77: 1——3关发现者奖励
B78: 100114 | C78: 11037 | D78: =ROUND(辅助设计表!#REF!/23,4)*10000 ->  | E78: 1 | F78: 1 | G78: 1 | H78: 薛苓碎片 | I78: 4星 | J78: 1——3关发现者奖励
B79: 100115 | C79: 11038 | D79: =ROUND(辅助设计表!#REF!/23,4)*10000 ->  | E79: 1 | F79: 1 | G79: 1 | H79: 常申碎片 | I79: 4星 | J79: 1——3关发现者奖励
B80: 100116 | C80: 11039 | D80: =ROUND(辅助设计表!#REF!/23,4)*10000 ->  | E80: 1 | F80: 1 | G80: 1 | H80: 呼延腾碎片 | I80: 4星 | J80: 1——3关发现者奖励
B81: 100117 | C81: 11040 | D81: =ROUND(辅助设计表!#REF!/23,4)*10000 ->  | E81: 1 | F81: 1 | G81: 1 | H81: 冉宜碎片 | I81: 4星 | J81: 1——3关发现者奖励
B82: 100118 | C82: 11041 | D82: =ROUND(辅助设计表!#REF!/23,4)*10000 ->  | E82: 1 | F82: 1 | G82: 1 | H82: 孟灿碎片 | I82: 4星 | J82: 1——3关发现者奖励
B83: 100119 | C83: 11042 | D83: =ROUND(辅助设计表!#REF!/23,4)*10000 ->  | E83: 1 | F83: 1 | G83: 1 | H83: 叶辽碎片 | I83: 4星 | J83: 1——3关发现者奖励
B84: 100120 | C84: 11043 | D84: =ROUND(辅助设计表!#REF!/23,4)*10000 ->  | E84: 1 | F84: 1 | G84: 1 | H84: 乌廉碎片 | I84: 4星 | J84: 1——3关发现者奖励
B85: 100121 | C85: 11044 | D85: =ROUND(辅助设计表!#REF!/23,4)*10000 ->  | E85: 1 | F85: 1 | G85: 1 | H85: 苏进碎片 | I85: 4星 | J85: 1——3关发现者奖励
B86: 100122 | C86: 11045 | D86: =ROUND(辅助设计表!#REF!/23,4)*10000 ->  | E86: 1 | F86: 1 | G86: 1 | H86: 苏可碎片 | I86: 4星 | J86: 1——3关发现者奖励
B87: 100123 | C87: 11046 | D87: =ROUND(辅助设计表!#REF!/23,4)*10000 ->  | E87: 1 | F87: 1 | G87: 1 | H87: 林越碎片 | I87: 4星 | J87: 1——3关发现者奖励
B88: 100124 | C88: 6001 | D88: =ROUND(辅助设计表!#REF!/9,4)*10000 ->  | E88: 1 | F88: 1 | G88: 1 | H88: 刀捞鬼1 | I88: 紫色 | J88: 1——3关发现者奖励
B89: 100125 | C89: 6002 | D89: =ROUND(辅助设计表!#REF!/9,4)*10000 ->  | E89: 1 | F89: 1 | G89: 1 | H89: 刀捞鬼2 | I89: 紫色 | J89: 1——3关发现者奖励
B90: 100126 | C90: 6003 | D90: =ROUND(辅助设计表!#REF!/9,4)*10000 ->  | E90: 1 | F90: 1 | G90: 1 | H90: 刀捞鬼3 | I90: 紫色 | J90: 1——3关发现者奖励
B91: 100127 | C91: 6004 | D91: =ROUND(辅助设计表!#REF!/9,4)*10000 ->  | E91: 1 | F91: 1 | G91: 1 | H91: 蒸笼仔1 | I91: 紫色 | J91: 1——3关发现者奖励
B92: 100128 | C92: 6005 | D92: =ROUND(辅助设计表!#REF!/9,4)*10000 ->  | E92: 1 | F92: 1 | G92: 1 | H92: 蒸笼仔2 | I92: 紫色 | J92: 1——3关发现者奖励
B93: 100129 | C93: 6006 | D93: =ROUND(辅助设计表!#REF!/9,4)*10000 ->  | E93: 1 | F93: 1 | G93: 1 | H93: 蒸笼仔3 | I93: 紫色 | J93: 1——3关发现者奖励
B94: 100130 | C94: 6007 | D94: =ROUND(辅助设计表!#REF!/9,4)*10000 ->  | E94: 1 | F94: 1 | G94: 1 | H94: 横公1 | I94: 紫色 | J94: 1——3关发现者奖励
B95: 100131 | C95: 6008 | D95: =ROUND(辅助设计表!#REF!/9,4)*10000 ->  | E95: 1 | F95: 1 | G95: 1 | H95: 横公2 | I95: 紫色 | J95: 1——3关发现者奖励
B96: 100132 | C96: 6009 | D96: =ROUND(辅助设计表!#REF!/9,4)*10000 ->  | E96: 1 | F96: 1 | G96: 1 | H96: 横公3 | I96: 紫色 | J96: 1——3关发现者奖励
B97: 100133 | C97: 6013 | D97: =ROUND(辅助设计表!#REF!/8,4)*10000 ->  | E97: 1 | F97: 1 | G97: 1 | H97: 火鼠1 | I97: 橙色 | J97: 1——3关发现者奖励
B98: 100134 | C98: 6014 | D98: =ROUND(辅助设计表!#REF!/8,4)*10000 ->  | E98: 1 | F98: 1 | G98: 1 | H98: 火鼠2 | I98: 橙色 | J98: 1——3关发现者奖励
B99: 100135 | C99: 6015 | D99: =ROUND(辅助设计表!#REF!/8,4)*10000 ->  | E99: 1 | F99: 1 | G99: 1 | H99: 火鼠3 | I99: 橙色 | J99: 1——3关发现者奖励
B100: 100136 | C100: 6016 | D100: =ROUND(辅助设计表!#REF!/8,4)*10000 ->  | E100: 1 | F100: 1 | G100: 1 | H100: 火鼠4 | I100: 橙色 | J100: 1——3关发现者奖励
B101: 100137 | C101: 6017 | D101: =ROUND(辅助设计表!#REF!/8,4)*10000 ->  | E101: 1 | F101: 1 | G101: 1 | H101: 拦面叟1 | I101: 橙色 | J101: 1——3关发现者奖励
B102: 100138 | C102: 6018 | D102: =ROUND(辅助设计表!#REF!/8,4)*10000 ->  | E102: 1 | F102: 1 | G102: 1 | H102: 拦面叟2 | I102: 橙色 | J102: 1——3关发现者奖励
B103: 100139 | C103: 6019 | D103: =ROUND(辅助设计表!#REF!/8,4)*10000 ->  | E103: 1 | F103: 1 | G103: 1 | H103: 拦面叟3 | I103: 橙色 | J103: 1——3关发现者奖励
B104: 100140 | C104: 6020 | D104: =ROUND(辅助设计表!#REF!/8,4)*10000 ->  | E104: 1 | F104: 1 | G104: 1 | H104: 拦面叟4 | I104: 橙色 | J104: 1——3关发现者奖励
B105: 100601 | C105: 11001 | D105: =ROUND(辅助设计表!#REF!/23,4)*10000 ->  | E105: 1 | F105: 1 | G105: 1 | H105: 石御霏碎片 | I105: 5星 | J105: 6——8关发现者奖励
B106: 100602 | C106: 11002 | D106: =ROUND(辅助设计表!#REF!/23,4)*10000 ->  | E106: 1 | F106: 1 | G106: 1 | H106: 楚恒碎片 | I106: 5星 | J106: 6——8关发现者奖励
B107: 100603 | C107: 11003 | D107: =ROUND(辅助设计表!#REF!/23,4)*10000 ->  | E107: 1 | F107: 1 | G107: 1 | H107: 夏侯鸿天碎片 | I107: 5星 | J107: 6——8关发现者奖励
B108: 100604 | C108: 11004 | D108: =ROUND(辅助设计表!#REF!/23,4)*10000 ->  | E108: 1 | F108: 1 | G108: 1 | H108: 应茹碎片 | I108: 5星 | J108: 6——8关发现者奖励
B109: 100605 | C109: 11005 | D109: =ROUND(辅助设计表!#REF!/23,4)*10000 ->  | E109: 1 | F109: 1 | G109: 1 | H109: 端木葵碎片 | I109: 5星 | J109: 6——8关发现者奖励
B110: 100606 | C110: 11006 | D110: =ROUND(辅助设计表!#REF!/23,4)*10000 ->  | E110: 1 | F110: 1 | G110: 1 | H110: 兰卿碎片 | I110: 5星 | J110: 6——8关发现者奖励
B111: 100607 | C111: 11007 | D111: =ROUND(辅助设计表!#REF!/23,4)*10000 ->  | E111: 1 | F111: 1 | G111: 1 | H111: 靖之碎片 | I111: 5星 | J111: 6——8关发现者奖励
B112: 100608 | C112: 11008 | D112: =ROUND(辅助设计表!#REF!/23,4)*10000 ->  | E112: 1 | F112: 1 | G112: 1 | H112: 白梦凡碎片 | I112: 5星 | J112: 6——8关发现者奖励
B113: 100609 | C113: 11009 | D113: =ROUND(辅助设计表!#REF!/23,4)*10000 ->  | E113: 1 | F113: 1 | G113: 1 | H113: 祁菲碎片 | I113: 5星 | J113: 6——8关发现者奖励
B114: 100610 | C114: 11010 | D114: =ROUND(辅助设计表!#REF!/23,4)*10000 ->  | E114: 1 | F114: 1 | G114: 1 | H114: 颜祈佳碎片 | I114: 5星 | J114: 6——8关发现者奖励
B115: 100611 | C115: 11011 | D115: =ROUND(辅助设计表!#REF!/23,4)*10000 ->  | E115: 1 | F115: 1 | G115: 1 | H115: 叶延碎片 | I115: 5星 | J115: 6——8关发现者奖励
B116: 100612 | C116: 11012 | D116: =ROUND(辅助设计表!#REF!/23,4)*10000 ->  | E116: 1 | F116: 1 | G116: 1 | H116: 慕容子期碎片 | I116: 5星 | J116: 6——8关发现者奖励
B117: 100613 | C117: 11013 | D117: =ROUND(辅助设计表!#REF!/23,4)*10000 ->  | E117: 1 | F117: 1 | G117: 1 | H117: 云灵碎片 | I117: 5星 | J117: 6——8关发现者奖励
B118: 100614 | C118: 11014 | D118: =ROUND(辅助设计表!#REF!/23,4)*10000 ->  | E118: 1 | F118: 1 | G118: 1 | H118: 耿陶碎片 | I118: 5星 | J118: 6——8关发现者奖励
B119: 100615 | C119: 11015 | D119: =ROUND(辅助设计表!#REF!/23,4)*10000 ->  | E119: 1 | F119: 1 | G119: 1 | H119: 云碎片 | I119: 5星 | J119: 6——8关发现者奖励
B120: 100616 | C120: 11016 | D120: =ROUND(辅助设计表!#REF!/23,4)*10000 ->  | E120: 1 | F120: 1 | G120: 1 | H120: 岑以航碎片 | I120: 5星 | J120: 6——8关发现者奖励
B121: 100617 | C121: 11017 | D121: =ROUND(辅助设计表!#REF!/23,4)*10000 ->  | E121: 1 | F121: 1 | G121: 1 | H121: 楚秋碎片 | I121: 5星 | J121: 6——8关发现者奖励
B122: 100618 | C122: 11018 | D122: =ROUND(辅助设计表!#REF!/23,4)*10000 ->  | E122: 1 | F122: 1 | G122: 1 | H122: 朱贺碎片 | I122: 5星 | J122: 6——8关发现者奖励
B123: 100619 | C123: 11019 | D123: =ROUND(辅助设计表!#REF!/23,4)*10000 ->  | E123: 1 | F123: 1 | G123: 1 | H123: 孔谦碎片 | I123: 5星 | J123: 6——8关发现者奖励
B124: 100620 | C124: 11020 | D124: =ROUND(辅助设计表!#REF!/23,4)*10000 ->  | E124: 1 | F124: 1 | G124: 1 | H124: 颜无雍碎片 | I124: 5星 | J124: 6——8关发现者奖励
B125: 100621 | C125: 11021 | D125: =ROUND(辅助设计表!#REF!/23,4)*10000 ->  | E125: 1 | F125: 1 | G125: 1 | H125: 岑以征碎片 | I125: 5星 | J125: 6——8关发现者奖励
B126: 100622 | C126: 11022 | D126: =ROUND(辅助设计表!#REF!/23,4)*10000 ->  | E126: 1 | F126: 1 | G126: 1 | H126: 颜无诡碎片 | I126: 5星 | J126: 6——8关发现者奖励
B127: 100623 | C127: 11023 | D127: =ROUND(辅助设计表!#REF!/23,4)*10000 ->  | E127: 1 | F127: 1 | G127: 1 | H127: 荧荧碎片 | I127: 5星 | J127: 6——8关发现者奖励
B128: 100624 | C128: 6001 | D128: =ROUND(辅助设计表!#REF!/9,4)*10000 ->  | E128: 1 | F128: 1 | G128: 1 | H128: 刀捞鬼1 | I128: 紫色 | J128: 6——8关发现者奖励
B129: 100625 | C129: 6002 | D129: =ROUND(辅助设计表!#REF!/9,4)*10000 ->  | E129: 1 | F129: 1 | G129: 1 | H129: 刀捞鬼2 | I129: 紫色 | J129: 6——8关发现者奖励
B130: 100626 | C130: 6003 | D130: =ROUND(辅助设计表!#REF!/9,4)*10000 ->  | E130: 1 | F130: 1 | G130: 1 | H130: 刀捞鬼3 | I130: 紫色 | J130: 6——8关发现者奖励
B131: 100627 | C131: 6004 | D131: =ROUND(辅助设计表!#REF!/9,4)*10000 ->  | E131: 1 | F131: 1 | G131: 1 | H131: 蒸笼仔1 | I131: 紫色 | J131: 6——8关发现者奖励
B132: 100628 | C132: 6005 | D132: =ROUND(辅助设计表!#REF!/9,4)*10000 ->  | E132: 1 | F132: 1 | G132: 1 | H132: 蒸笼仔2 | I132: 紫色 | J132: 6——8关发现者奖励
B133: 100629 | C133: 6006 | D133: =ROUND(辅助设计表!#REF!/9,4)*10000 ->  | E133: 1 | F133: 1 | G133: 1 | H133: 蒸笼仔3 | I133: 紫色 | J133: 6——8关发现者奖励
B134: 100630 | C134: 6007 | D134: =ROUND(辅助设计表!#REF!/9,4)*10000 ->  | E134: 1 | F134: 1 | G134: 1 | H134: 横公1 | I134: 紫色 | J134: 6——8关发现者奖励
B135: 100631 | C135: 6008 | D135: =ROUND(辅助设计表!#REF!/9,4)*10000 ->  | E135: 1 | F135: 1 | G135: 1 | H135: 横公2 | I135: 紫色 | J135: 6——8关发现者奖励
B136: 100632 | C136: 6009 | D136: =ROUND(辅助设计表!#REF!/9,4)*10000 ->  | E136: 1 | F136: 1 | G136: 1 | H136: 横公3 | I136: 紫色 | J136: 6——8关发现者奖励
B137: 100633 | C137: 6013 | D137: =ROUND(辅助设计表!#REF!/8,4)*10000 ->  | E137: 1 | F137: 1 | G137: 1 | H137: 火鼠1 | I137: 橙色 | J137: 6——8关发现者奖励
B138: 100634 | C138: 6014 | D138: =ROUND(辅助设计表!#REF!/8,4)*10000 ->  | E138: 1 | F138: 1 | G138: 1 | H138: 火鼠2 | I138: 橙色 | J138: 6——8关发现者奖励
B139: 100635 | C139: 6015 | D139: =ROUND(辅助设计表!#REF!/8,4)*10000 ->  | E139: 1 | F139: 1 | G139: 1 | H139: 火鼠3 | I139: 橙色 | J139: 6——8关发现者奖励
B140: 100636 | C140: 6016 | D140: =ROUND(辅助设计表!#REF!/8,4)*10000 ->  | E140: 1 | F140: 1 | G140: 1 | H140: 火鼠4 | I140: 橙色 | J140: 6——8关发现者奖励
B141: 100637 | C141: 6017 | D141: =ROUND(辅助设计表!#REF!/8,4)*10000 ->  | E141: 1 | F141: 1 | G141: 1 | H141: 拦面叟1 | I141: 橙色 | J141: 6——8关发现者奖励
B142: 100638 | C142: 6018 | D142: =ROUND(辅助设计表!#REF!/8,4)*10000 ->  | E142: 1 | F142: 1 | G142: 1 | H142: 拦面叟2 | I142: 橙色 | J142: 6——8关发现者奖励
B143: 100639 | C143: 6019 | D143: =ROUND(辅助设计表!#REF!/8,4)*10000 ->  | E143: 1 | F143: 1 | G143: 1 | H143: 拦面叟3 | I143: 橙色 | J143: 6——8关发现者奖励
B144: 100640 | C144: 6020 | D144: =ROUND(辅助设计表!#REF!/8,4)*10000 ->  | E144: 1 | F144: 1 | G144: 1 | H144: 拦面叟4 | I144: 橙色 | J144: 6——8关发现者奖励
B145: 210101 | C145: 3 | D145: 100 | E145: 1 | F145: =F146-400 -> -8700 | G145: =辅助设计表!$E$19 -> 0 | H145: 成长护符 | J145: 击杀奖励1-1
B146: =B145+1 -> 210102 | C146: 3 | D146: 100 | E146: 1 | F146: =F147-600 -> -8300 | G146: =F146 -> -8300 | H146: 成长护符 | J146: 击杀奖励1-2
B147: =B146+1 -> 210103 | C147: 3 | D147: 100 | E147: 1 | F147: =F149-500 -> -7700 | G147: =F147 -> -7700 | H147: 成长护符 | J147: 击杀奖励1-3
B148: =B145+100 -> 210201 | C148: 3 | D148: 100 | E148: 1 | F148: =F149-400 -> -7600 | G148: -7600 | H148: 成长护符 | J148: 击杀奖励2-1
B149: =B146+100 -> 210202 | C149: 3 | D149: 100 | E149: 1 | F149: =F150-600 -> -7200 | G149: -7200 | H149: 成长护符 | J149: 击杀奖励2-2
B150: 210203 | C150: 3 | D150: 100 | E150: 1 | F150: =F152-500 -> -6600 | G150: -6600 | H150: 成长护符 | J150: 击杀奖励2-3
B151: 210301 | C151: 3 | D151: 100 | E151: 1 | F151: =F152-400 -> -6500 | G151: -6500 | H151: 成长护符 | J151: 击杀奖励3-1
B152: 210302 | C152: 3 | D152: 100 | E152: 1 | F152: =F153-600 -> -6100 | G152: -6100 | H152: 成长护符 | J152: 击杀奖励3-2
B153: 210303 | C153: 3 | D153: 100 | E153: 1 | F153: =F155-500 -> -5500 | G153: -5500 | H153: 成长护符 | J153: 击杀奖励3-3
B154: 210401 | C154: 3 | D154: 100 | E154: 1 | F154: =F155-400 -> -5400 | G154: -5400 | H154: 成长护符 | J154: 击杀奖励4-1
B155: 210402 | C155: 3 | D155: 100 | E155: 1 | F155: =F156-600 -> -5000 | G155: -5000 | H155: 成长护符 | J155: 击杀奖励4-2
B156: 210403 | C156: 3 | D156: 100 | E156: 1 | F156: =F158-500 -> -4400 | G156: -4400 | H156: 成长护符 | J156: 击杀奖励4-2
B157: 210501 | C157: 3 | D157: 100 | E157: 1 | F157: =F158-400 -> -4300 | G157: -4300 | H157: 成长护符 | J157: 击杀奖励5-1
B158: 210502 | C158: 3 | D158: 100 | E158: 1 | F158: =F159-600 -> -3900 | G158: -3900 | H158: 成长护符 | J158: 击杀奖励5-2
B159: 210503 | C159: 3 | D159: 100 | E159: 1 | F159: =F161-500 -> -3300 | G159: -3300 | H159: 成长护符 | J159: 击杀奖励5-3
B160: 210601 | C160: 3 | D160: 100 | E160: 1 | F160: =F161-400 -> -3200 | G160: -3200 | H160: 成长护符 | J160: 击杀奖励6-1
B161: 210602 | C161: 3 | D161: 100 | E161: 1 | F161: =F162-600 -> -2800 | G161: -2800 | H161: 成长护符 | J161: 击杀奖励6-2
B162: 210603 | C162: 3 | D162: 100 | E162: 1 | F162: =F164-500 -> -2200 | G162: -2200 | H162: 成长护符 | J162: 击杀奖励6-3
B163: 210701 | C163: 3 | D163: 100 | E163: 1 | F163: =F164-400 -> -2100 | G163: -2100 | H163: 成长护符 | J163: 击杀奖励7-1
B164: 210702 | C164: 3 | D164: 100 | E164: 1 | F164: =F165-600 -> -1700 | G164: -1700 | H164: 成长护符 | J164: 击杀奖励7-2
B165: 210703 | C165: 3 | D165: 100 | E165: 1 | F165: =F167-500 -> -1100 | G165: -1100 | H165: 成长护符 | J165: 击杀奖励7-3
B166: 210801 | C166: 3 | D166: 100 | E166: 1 | F166: =F167-400 -> -1000 | G166: -1000 | H166: 成长护符 | J166: 击杀奖励8-1
B167: 210802 | C167: 3 | D167: 100 | E167: 1 | F167: =F168-600 -> -600 | G167: -600 | H167: 成长护符 | J167: 击杀奖励8-2
B168: 210803 | C168: 3 | D168: 100 | E168: 1 | F168: =辅助设计表!E19 -> 0 | G168: 0 | H168: 成长护符 | J168: 击杀奖励8-3
B169: =B145+10000 -> 220101 | C169: 4 | D169: 100 | E169: 1 | F169: =F170-40 -> -870 | G169: -870 | H169: 梦魇妖壶 | J169: 击杀奖励1-1
B170: =B146+10000 -> 220102 | C170: 4 | D170: 100 | E170: 1 | F170: =F171-60 -> -830 | G170: =F170 -> -830 | H170: 梦魇妖壶 | J170: 击杀奖励1-2
B171: 220103 | C171: 4 | D171: 100 | E171: 1 | F171: =F173-50 -> -770 | G171: -770 | H171: 梦魇妖壶 | J171: 击杀奖励1-3
B172: 220201 | C172: 4 | D172: 100 | E172: 1 | F172: =F173-40 -> -760 | G172: -760 | H172: 梦魇妖壶 | J172: 击杀奖励2-1
B173: 220202 | C173: 4 | D173: 100 | E173: 1 | F173: =F174-60 -> -720 | G173: -720 | H173: 梦魇妖壶 | J173: 击杀奖励2-2
B174: 220203 | C174: 4 | D174: 100 | E174: 1 | F174: =F176-50 -> -660 | G174: -660 | H174: 梦魇妖壶 | J174: 击杀奖励2-3
B175: 220301 | C175: 4 | D175: 100 | E175: 1 | F175: =F176-40 -> -650 | G175: -650 | H175: 梦魇妖壶 | J175: 击杀奖励3-1
B176: 220302 | C176: 4 | D176: 100 | E176: 1 | F176: =F177-60 -> -610 | G176: -610 | H176: 梦魇妖壶 | J176: 击杀奖励3-2
B177: 220303 | C177: 4 | D177: 100 | E177: 1 | F177: =F179-50 -> -550 | G177: -550 | H177: 梦魇妖壶 | J177: 击杀奖励3-3
B178: 220401 | C178: 4 | D178: 100 | E178: 1 | F178: =F179-40 -> -540 | G178: -540 | H178: 梦魇妖壶 | J178: 击杀奖励4-1
B179: 220402 | C179: 4 | D179: 100 | E179: 1 | F179: =F180-60 -> -500 | G179: -500 | H179: 梦魇妖壶 | J179: 击杀奖励4-2
B180: 220403 | C180: 4 | D180: 100 | E180: 1 | F180: =F182-50 -> -440 | G180: -440 | H180: 梦魇妖壶 | J180: 击杀奖励4-2
B181: 220501 | C181: 4 | D181: 100 | E181: 1 | F181: =F182-40 -> -430 | G181: -430 | H181: 梦魇妖壶 | J181: 击杀奖励5-1
B182: 220502 | C182: 4 | D182: 100 | E182: 1 | F182: =F183-60 -> -390 | G182: -390 | H182: 梦魇妖壶 | J182: 击杀奖励5-2
B183: 220503 | C183: 4 | D183: 100 | E183: 1 | F183: =F185-50 -> -330 | G183: -330 | H183: 梦魇妖壶 | J183: 击杀奖励5-3
B184: 220601 | C184: 4 | D184: 100 | E184: 1 | F184: =F185-40 -> -320 | G184: -320 | H184: 梦魇妖壶 | J184: 击杀奖励6-1
B185: 220602 | C185: 4 | D185: 100 | E185: 1 | F185: =F186-60 -> -280 | G185: -280 | H185: 梦魇妖壶 | J185: 击杀奖励6-2
B186: 220603 | C186: 4 | D186: 100 | E186: 1 | F186: =F188-50 -> -220 | G186: -220 | H186: 梦魇妖壶 | J186: 击杀奖励6-3
B187: 220701 | C187: 4 | D187: 100 | E187: 1 | F187: =F188-40 -> -210 | G187: -210 | H187: 梦魇妖壶 | J187: 击杀奖励7-1
B188: 220702 | C188: 4 | D188: 100 | E188: 1 | F188: =F189-60 -> -170 | G188: -170 | H188: 梦魇妖壶 | J188: 击杀奖励7-2
B189: 220703 | C189: 4 | D189: 100 | E189: 1 | F189: =F191-50 -> -110 | G189: -110 | H189: 梦魇妖壶 | J189: 击杀奖励7-3
B190: 220801 | C190: 4 | D190: 100 | E190: 1 | F190: =F191-40 -> -100 | G190: -100 | H190: 梦魇妖壶 | J190: 击杀奖励8-1
B191: 220802 | C191: 4 | D191: 100 | E191: 1 | F191: =F192-60 -> -60 | G191: -60 | H191: 梦魇妖壶 | J191: 击杀奖励8-2
B192: 220803 | C192: 4 | D192: 100 | E192: 1 | F192: =辅助设计表!G19 -> 0 | G192: 0 | H192: 梦魇妖壶 | J192: 击杀奖励8-3
B193: 230101 | C193: 29 | D193: 100 | E193: 1 | F193: =辅助设计表!L19 -> 0 | G193: 0 | H193: 秘境升级材料 | J193: 击杀奖励1-1
B194: =B170+10000 -> 230102 | C194: 29 | D194: 100 | E194: 1 | F194: =辅助设计表!M19 -> 0 | G194: =F194 -> 0 | H194: 秘境升级材料 | J194: 击杀奖励1-2
B195: 230103 | C195: 29 | D195: 100 | E195: 1 | F195: =辅助设计表!N19 -> 0 | G195: 0 | H195: 秘境升级材料 | J195: 击杀奖励1-3
B196: 230201 | C196: 29 | D196: 100 | E196: 1 | F196: =辅助设计表!L20 -> 0 | G196: 0 | H196: 秘境升级材料 | J196: 击杀奖励2-1
B197: 230202 | C197: 29 | D197: 100 | E197: 1 | F197: =辅助设计表!M20 -> 0 | G197: 0 | H197: 秘境升级材料 | J197: 击杀奖励2-2
B198: 230203 | C198: 29 | D198: 100 | E198: 1 | F198: =辅助设计表!N20 -> 0 | G198: 0 | H198: 秘境升级材料 | J198: 击杀奖励2-3
B199: 230301 | C199: 29 | D199: 100 | E199: 1 | F199: =辅助设计表!L21 -> 0 | G199: 0 | H199: 秘境升级材料 | J199: 击杀奖励3-1
B200: 230302 | C200: 29 | D200: 100 | E200: 1 | F200: =辅助设计表!M21 -> 0 | G200: 0 | H200: 秘境升级材料 | J200: 击杀奖励3-2
... 73 more rows

Sheet y异妖配件
A1: 6001 | B1: 刀捞鬼1
A2: 6002 | B2: 刀捞鬼2
A3: 6003 | B3: 刀捞鬼3
A4: 6004 | B4: 蒸笼仔1
A5: 6005 | B5: 蒸笼仔2
A6: 6006 | B6: 蒸笼仔3
A7: 6007 | B7: 横公1
A8: 6008 | B8: 横公2
A9: 6009 | B9: 横公3
A10: 6013 | B10: 火鼠1
A11: 6014 | B11: 火鼠2
A12: 6015 | B12: 火鼠3
A13: 6016 | B13: 火鼠4
A14: 6017 | B14: 拦面叟1
A15: 6018 | B15: 拦面叟2
A16: 6019 | B16: 拦面叟3
A17: 6020 | B17: 拦面叟4

Sheet 外敌入侵
A1: 601011#278|0#9722,601021#278|0#9722,601031#111|601032#111|601033#56|0#9722 | B1: =SUBSTITUTE(SUBSTITUTE(SUBSTITUTE(A1,"9722",1000,1),"9722",1000,1),"9722",1000,1) -> 601011#278|0#1000,601021#278|0#1000,601031#111|601032#111|601033#56|0#1000
A2: 602011#139|602012#139|0#9722,602021#139|602022#139|0#9722,602031#111|602032#111|602033#56|0#9722 | B2: =SUBSTITUTE(SUBSTITUTE(SUBSTITUTE(A2,"9722",1000,1),"9722",1000,1),"9722",1000,1) -> 602011#139|602012#139|0#1000,602021#139|602022#139|0#1000,602031#111|602032#111|602033#56|0#1000
A3: 603011#139|603012#139|0#9722,603021#139|603022#139|0#9722,603031#111|603032#111|603033#56|0#9722 | B3: 603011#139|603012#139|0#1000,603021#139|603022#139|0#1000,603031#111|603032#111|603033#56|0#1000
A4: 604011#139|604012#139|0#9722,604021#139|604022#139|0#9722,604031#111|604032#111|604033#56|0#9722 | B4: 604011#139|604012#139|0#1000,604021#139|604022#139|0#1000,604031#111|604032#111|604033#56|0#1000
A5: 605011#139|605012#139|0#9722,605021#139|605022#139|0#9722,605031#111|605032#111|605033#56|0#9722 | B5: 605011#139|605012#139|0#1000,605021#139|605022#139|0#1000,605031#111|605032#111|605033#56|0#1000
A6: 606011#139|606012#139|0#9722,606021#139|606022#139|0#9722,606031#93|606032#93|606033#93|0#9721 | B6: =SUBSTITUTE(SUBSTITUTE(SUBSTITUTE(A6,"9722",1000,1),"9722",1000,1),"9721",1000,1) -> 606011#139|606012#139|0#1000,606021#139|606022#139|0#1000,606031#93|606032#93|606033#93|0#1000
A7: 607011#139|607012#139|0#9722,607021#139|607022#139|0#9722,607031#93|607032#93|607033#93|0#9721 | B7: =SUBSTITUTE(SUBSTITUTE(SUBSTITUTE(A7,"9722",1000,1),"9722",1000,1),"9721",1000,1) -> 607011#139|607012#139|0#1000,607021#139|607022#139|0#1000,607031#93|607032#93|607033#93|0#1000
A8: 608011#139|608012#139|0#9722,608021#139|608022#139|0#9722,608031#93|608032#93|608033#93|0#9721 | B8: =SUBSTITUTE(SUBSTITUTE(SUBSTITUTE(A8,"9722",1000,1),"9722",1000,1),"9721",1000,1) -> 608011#139|608012#139|0#1000,608021#139|608022#139|0#1000,608031#93|608032#93|608033#93|0#1000

Sheet Sheet2
F4: 1 | G4: 14 | H4: 1000000 | J4: 14 | K4: 5000000 | M4: =[1]!SUMSTRING(G4:H4,"#") ->  | P4: =[1]!SUMSTRING(J4:K4,"#") ->  | R4: =[1]!SUMSTRING(M4:P4,"|") -> 
F5: 2 | G5: 14 | H5: 1500000 | J5: 14 | K5: 6000000 | M5: =[1]!SUMSTRING(G5:H5,"#") ->  | P5: =[1]!SUMSTRING(J5:K5,"#") ->  | R5: =[1]!SUMSTRING(M5:P5,"|") -> 
F6: 3 | G6: 14 | H6: 2000000 | J6: 14 | K6: 7000000 | M6: =[1]!SUMSTRING(G6:H6,"#") ->  | P6: =[1]!SUMSTRING(J6:K6,"#") ->  | R6: =[1]!SUMSTRING(M6:P6,"|") -> 
F7: 4 | G7: 14 | H7: 2500000 | J7: 14 | K7: 8000000 | M7: =[1]!SUMSTRING(G7:H7,"#") ->  | P7: =[1]!SUMSTRING(J7:K7,"#") ->  | R7: =[1]!SUMSTRING(M7:P7,"|") -> 
F8: 5 | G8: 14 | H8: 3000000 | J8: 14 | K8: 9000000 | M8: =[1]!SUMSTRING(G8:H8,"#") ->  | P8: =[1]!SUMSTRING(J8:K8,"#") ->  | R8: =[1]!SUMSTRING(M8:P8,"|") -> 
F9: 6 | G9: 14 | H9: 3500000 | J9: 14 | K9: 10000000 | M9: =[1]!SUMSTRING(G9:H9,"#") ->  | P9: =[1]!SUMSTRING(J9:K9,"#") ->  | R9: =[1]!SUMSTRING(M9:P9,"|") -> 
F10: 7 | G10: 14 | H10: 4000000 | J10: 14 | K10: 11000000 | M10: =[1]!SUMSTRING(G10:H10,"#") ->  | P10: =[1]!SUMSTRING(J10:K10,"#") ->  | R10: =[1]!SUMSTRING(M10:P10,"|") -> 
F11: 8 | G11: 14 | H11: 4500000 | J11: 14 | K11: 12000000 | M11: =[1]!SUMSTRING(G11:H11,"#") ->  | P11: =[1]!SUMSTRING(J11:K11,"#") ->  | R11: =[1]!SUMSTRING(M11:P11,"|") -> 
I18: 93 | J18: 93#351 | K18: 93#351 | L18: =[1]!SUMSTRING(I18:K18,"|") ->  | O18: 351 | T18: =[1]!SUMSTRING(I18:S18,"#") -> 
I19: 118 | J19: 118#352 | K19: 118#352 | L19: =[1]!SUMSTRING(I19:K19,"|") ->  | P19: 352 | T19: =[1]!SUMSTRING(I19:S19,"#") -> 
I20: 118 | J20: 118#353 | K20: 118#353 | L20: =[1]!SUMSTRING(I20:K20,"|") ->  | P20: 353 | T20: =[1]!SUMSTRING(I20:S20,"#") -> 
I21: 118#123 | J21: 118#123#354 | K21: 118#123#354 | L21: =[1]!SUMSTRING(I21:K21,"|") ->  | Q21: 354 | T21: =[1]!SUMSTRING(I21:S21,"#") -> 
I22: 123 | J22: 123#355 | K22: 123#355 | L22: =[1]!SUMSTRING(I22:K22,"|") ->  | Q22: 355 | T22: =[1]!SUMSTRING(I22:S22,"#") -> 
I23: 123 | J23: 123#356 | K23: 123#356 | L23: =[1]!SUMSTRING(I23:K23,"|") ->  | Q23: 356 | T23: =[1]!SUMSTRING(I23:S23,"#") -> 
I24: 123 | J24: 123#357 | K24: 123#357 | L24: =[1]!SUMSTRING(I24:K24,"|") ->  | Q24: 357 | T24: =[1]!SUMSTRING(I24:S24,"#") -> 
I25: 138 | J25: 138#358#401 | K25: 138#358#401 | L25: =[1]!SUMSTRING(I25:K25,"|") ->  | R25: 358 | S25: 401 | T25: =[1]!SUMSTRING(I25:S25,"#") -> 

Sheet 奖励辅助表
B4: 111#121#131#140 | C4: 91 | D4: =SUBSTITUTE(B4,"140",C4,1) -> 111#121#131#91 | E4: 161#171#181#140#231#241#251#261 | F4: 81 | G4: =SUBSTITUTE(E4,"140",F4,1) -> 161#171#181#81#231#241#251#261 | H4: 201#211#221#140#271#281#291#301#351 | I4: 71 | J4: =SUBSTITUTE(H4,"140",I4,1) -> 201#211#221#71#271#281#291#301#351 | K4: =_xlfn.TEXTJOIN("|",TRUE,D4,G4,J4) -> 111#121#131#91|161#171#181#81#231#241#251#261|201#211#221#71#271#281#291#301#351
B5: 112#122#132#140 | C5: 92 | D5: =SUBSTITUTE(B5,"140",C5,1) -> 112#122#132#92 | E5: 162#172#182#140#232#242#252#262 | F5: 82 | G5: =SUBSTITUTE(E5,"140",F5,1) -> 162#172#182#82#232#242#252#262 | H5: 202#212#222#140#272#282#292#302#352 | I5: 72 | J5: 202#212#222#72#272#282#292#302#352 | K5: =_xlfn.TEXTJOIN("|",TRUE,D5,G5,J5) -> 112#122#132#92|162#172#182#82#232#242#252#262|202#212#222#72#272#282#292#302#352
B6: 113#123#133#140 | C6: 93 | D6: 113#123#133#93 | E6: 163#173#183#140#233#243#253#263 | F6: 83 | G6: 163#173#183#83#233#243#253#263 | H6: 203#213#223#140#273#283#293#303#353 | I6: 73 | J6: 203#213#223#73#273#283#293#303#353 | K6: 113#123#133#93|163#173#183#83#233#243#253#263|203#213#223#73#273#283#293#303#353
B7: 114#124#134#140 | C7: 94 | D7: 114#124#134#94 | E7: 164#174#184#140#234#244#254#264 | F7: 84 | G7: 164#174#184#84#234#244#254#264 | H7: 204#214#224#140#274#284#294#304#354 | I7: 74 | J7: 204#214#224#74#274#284#294#304#354 | K7: 114#124#134#94|164#174#184#84#234#244#254#264|204#214#224#74#274#284#294#304#354
B8: 115#125#135#140 | C8: 95 | D8: 115#125#135#95 | E8: 165#175#185#140#235#245#255#265 | F8: 85 | G8: 165#175#185#85#235#245#255#265 | H8: 205#215#225#140#275#285#295#305#355 | I8: 75 | J8: 205#215#225#75#275#285#295#305#355 | K8: 115#125#135#95|165#175#185#85#235#245#255#265|205#215#225#75#275#285#295#305#355
B9: 116#126#136#140 | C9: 96 | D9: 116#126#136#96 | E9: 166#176#186#140#236#246#256#266 | F9: 86 | G9: 166#176#186#86#236#246#256#266 | H9: 206#216#226#140#276#286#296#306#356 | I9: 76 | J9: 206#216#226#76#276#286#296#306#356 | K9: 116#126#136#96|166#176#186#86#236#246#256#266|206#216#226#76#276#286#296#306#356
B10: 117#127#137#140 | C10: 97 | D10: 117#127#137#97 | E10: 167#177#187#140#237#247#257#267 | F10: 87 | G10: 167#177#187#87#237#247#257#267 | H10: 207#217#227#140#277#287#297#307#357 | I10: 77 | J10: 207#217#227#77#277#287#297#307#357 | K10: 117#127#137#97|167#177#187#87#237#247#257#267|207#217#227#77#277#287#297#307#357
B11: 118#128#138#140#401 | C11: 98 | D11: 118#128#138#98#401 | E11: 168#178#188#140#238#248#258#268#401 | F11: 88 | G11: 168#178#188#88#238#248#258#268#401 | H11: 208#218#228#140#278#288#298#308#358#401 | I11: 78 | J11: 208#218#228#78#278#288#298#308#358#401 | K11: 118#128#138#98#401|168#178#188#88#238#248#258#268#401|208#218#228#78#278#288#298#308#358#401
A15: 秘境奖励
B16: 1级 | C16: 2级 | D16: 3级 | E16: 2级锭 | F16: 3级锭 | G16: 2级符文 | H16: 3级符文 | I16: 2级 | J16: 3级 | K16: 合计
B17: 93 | C17: 93 | D17: 93#351 | E17: 171#181 | F17: 211#221 | G17: 251#261 | H17: 291#301 | I17: =_xlfn.TEXTJOIN("#",TRUE,C17,E17,G17) -> 93#171#181#251#261 | J17: =_xlfn.TEXTJOIN("#",TRUE,D17,F17,H17) -> 93#351#211#221#291#301 | K17: =_xlfn.TEXTJOIN("|",TRUE,B17,I17,J17) -> 93|93#171#181#251#261|93#351#211#221#291#301
B18: 118 | C18: 118 | D18: 118#352 | E18: 172#182 | F18: 212#222 | G18: 252#262 | H18: 292#302 | I18: =_xlfn.TEXTJOIN("#",TRUE,C18,E18,G18) -> 118#172#182#252#262 | J18: =_xlfn.TEXTJOIN("#",TRUE,D18,F18,H18) -> 118#352#212#222#292#302 | K18: =_xlfn.TEXTJOIN("|",TRUE,B18,I18,J18) -> 118|118#172#182#252#262|118#352#212#222#292#302
B19: 118 | C19: 118 | D19: 118#353 | E19: 173#183 | F19: 213#223 | G19: 253#263 | H19: 293#303 | I19: 118#173#183#253#263 | J19: 118#353#213#223#293#303 | K19: 118|118#173#183#253#263|118#353#213#223#293#303
B20: 118#123 | C20: 118#123 | D20: 118#123#354 | E20: 174#184 | F20: 214#224 | G20: 254#264 | H20: 294#304 | I20: 118#123#174#184#254#264 | J20: 118#123#354#214#224#294#304 | K20: 118#123|118#123#174#184#254#264|118#123#354#214#224#294#304
B21: 123 | C21: 123 | D21: 123#355 | E21: 175#185 | F21: 215#225 | G21: 255#265 | H21: 295#305 | I21: 123#175#185#255#265 | J21: 123#355#215#225#295#305 | K21: 123|123#175#185#255#265|123#355#215#225#295#305
B22: 123 | C22: 123 | D22: 123#356 | E22: 176#186 | F22: 216#226 | G22: 256#266 | H22: 296#306 | I22: 123#176#186#256#266 | J22: 123#356#216#226#296#306 | K22: 123|123#176#186#256#266|123#356#216#226#296#306
B23: 123 | C23: 123 | D23: 123#357 | E23: 177#187 | F23: 217#227 | G23: 257#267 | H23: 297#307 | I23: 123#177#187#257#267 | J23: 123#357#217#227#297#307 | K23: 123|123#177#187#257#267|123#357#217#227#297#307
B24: 138 | C24: 138 | D24: 138#358#401 | E24: 178#188 | F24: 218#228 | G24: 258#268 | H24: 298#308 | I24: 138#178#188#258#268 | J24: 138#358#401#218#228#298#308 | K24: 138|138#178#188#258#268|138#358#401#218#228#298#308
B28: 1级 | C28: 装备 | I28: 每天
B29: 2级 | C29: 装备 | D29: 紫锭 | E29: 橙锭 | F29: 紫色符文 | G29: 橙色符文 | I29: 2级 | J29: 紫锭 | K29: =SUM(K9:K16) -> 0 | L29: 橙锭 | M29: =SUM(M9:M16) -> 0
B30: 3级 | C30: 装备 | D30: 紫锭 | E30: 橙锭 | F30: 紫色符文 | G30: 橙色符文 | H30: 角色碎片 | I30: 3级 | J30: 紫锭 | K30: =SUM(K19:K26) -> 0 | L30: 橙锭 | M30: =SUM(M19:M26) -> 0
E32: 每分钟概率 | F32: 0.001388888889 | G32: =0.001388889*60*24 -> 2.00000016
D35: 2 | E35: 1 | F35: 2 | G35: 1
D36: 2 | E36: 2 | F36: 2 | G36: 2
D37: 0.001388889 | E37: =D37/2 -> 0.0006944445
C39: 每天 | E39: 每天 | G39: 每天 | I39: 每天
B40: 2级 | C40: 1008 | D40: 概率 | E40: 1009 | F40: 概率 | G40: 紫色符文 | I40: 橙色符文
B41: 1 | C41: 2 | D41: =$F$32/2*C41 -> 0.001388888889 | E41: 1 | F41: 0.0006944444445 | G41: 2 | H41: =$F$32/2*G41 -> 0.001388888889 | I41: 1 | J41: =$F$32/2*I41 -> 0.0006944444445 | K41: =INT(H41/6*100000000) -> 23148 | L41: =100000000-K41*6 -> 99861112 | M41: =INT(J41/6*100000000) -> 11574 | N41: =100000000-M41*6 -> 99930556
B42: 2 | C42: 2 | D42: =$F$32/2*C42 -> 0.001388888889 | E42: 1 | F42: =$F$32/2*E42 -> 0.0006944444445 | G42: 2 | H42: =$F$32/2*G42 -> 0.001388888889 | I42: 1 | J42: =$F$32/2*I42 -> 0.0006944444445 | K42: 23148 | L42: 99861112 | M42: 11574 | N42: 99930556
B43: 3 | C43: 2 | D43: 0.001388888889 | E43: 1 | F43: 0.0006944444445 | G43: 2 | H43: 0.001388888889 | I43: 1 | J43: 0.0006944444445 | K43: 23148 | L43: 99861112 | M43: 11574 | N43: 99930556
B44: 4 | C44: 2 | D44: 0.001388888889 | E44: 1 | F44: 0.0006944444445 | G44: 2 | H44: 0.001388888889 | I44: 1 | J44: 0.0006944444445 | K44: 23148 | L44: 99861112 | M44: 11574 | N44: 99930556
B45: 5 | C45: 3 | D45: 0.002083333333 | E45: 1 | F45: 0.0006944444445 | G45: 3 | H45: 0.002083333333 | I45: 1 | J45: 0.0006944444445 | K45: 34722 | L45: 99791668 | M45: 11574 | N45: 99930556
B46: 6 | C46: 3 | D46: 0.002083333333 | E46: 1 | F46: 0.0006944444445 | G46: 3 | H46: 0.002083333333 | I46: 1 | J46: 0.0006944444445 | K46: 34722 | L46: 99791668 | M46: 11574 | N46: 99930556
B47: 7 | C47: 3 | D47: 0.002083333333 | E47: 2 | F47: 0.001388888889 | G47: 3 | H47: 0.002083333333 | I47: 2 | J47: 0.001388888889 | K47: 34722 | L47: 99791668 | M47: 23148 | N47: 99861112
B48: 8 | C48: 3 | D48: 0.002083333333 | E48: 2 | F48: 0.001388888889 | G48: 3 | H48: 0.002083333333 | I48: 2 | J48: 0.001388888889 | K48: 34722 | L48: 99791668 | M48: 23148 | N48: 99861112
C52: 每天 | E52: 每天 | G52: 每天 | I52: 每天
B53: 3级 | C53: 1008 | D53: 概率 | E53: 1009 | F53: 概率 | G53: 紫色符文 | I53: 橙色符文
B54: 1 | C54: 2 | D54: =$F$32/2*C54 -> 0.001388888889 | E54: 1 | F54: 0.0006944444445 | G54: 2 | H54: =$F$32/2*G54 -> 0.001388888889 | I54: 1 | J54: =$F$32/2*I54 -> 0.0006944444445 | K54: =INT(H54/6*100000000) -> 23148 | L54: =100000000-K54*6 -> 99861112 | M54: =INT(J54/6*100000000) -> 11574 | N54: =100000000-M54*6 -> 99930556
B55: 2 | C55: 2 | D55: =$F$32/2*C55 -> 0.001388888889 | E55: 1 | F55: 0.0006944444445 | G55: 2 | H55: 0.001388888889 | I55: 1 | J55: 0.0006944444445 | K55: =INT(H55/6*100000000) -> 23148 | L55: =100000000-K55*6 -> 99861112 | M55: 11574 | N55: 99930556
B56: 3 | C56: 2 | D56: =$F$32/2*C56 -> 0.001388888889 | E56: 1 | F56: 0.0006944444445 | G56: 2 | H56: 0.001388888889 | I56: 1 | J56: 0.0006944444445 | K56: 23148 | L56: 99861112 | M56: 11574 | N56: 99930556
B57: 4 | C57: 2 | D57: =$F$32/2*C57 -> 0.001388888889 | E57: 1 | F57: 0.0006944444445 | G57: 2 | H57: 0.001388888889 | I57: 1 | J57: 0.0006944444445 | K57: 23148 | L57: 99861112 | M57: 11574 | N57: 99930556
B58: 5 | C58: 3 | D58: =$F$32/2*C58 -> 0.002083333333 | E58: 1 | F58: 0.0006944444445 | G58: 3 | H58: 0.002083333333 | I58: 1 | J58: 0.0006944444445 | K58: 34722 | L58: 99791668 | M58: 11574 | N58: 99930556
B59: 6 | C59: 3 | D59: =$F$32/2*C59 -> 0.002083333333 | E59: 1 | F59: 0.0006944444445 | G59: 3 | H59: 0.002083333333 | I59: 1 | J59: 0.0006944444445 | K59: 34722 | L59: 99791668 | M59: 11574 | N59: 99930556
B60: 7 | C60: 3 | D60: =$F$32/2*C60 -> 0.002083333333 | E60: 2 | F60: 0.001388888889 | G60: 3 | H60: 0.002083333333 | I60: 2 | J60: 0.001388888889 | K60: 34722 | L60: 99791668 | M60: 23148 | N60: 99861112
B61: 8 | C61: 3 | D61: =$F$32/2*C61 -> 0.002083333333 | E61: 2 | F61: 0.001388888889 | G61: 3 | H61: 0.002083333333 | I61: 2 | J61: 0.001388888889 | K61: 34722 | L61: 99791668 | M61: 23148 | N61: 99861112
E63: 1 | F63: 55001 | G63: =F63+10 -> 55011 | H63: =G63+10 -> 55021 | I63: 55031 | J63: 55041 | K63: 55051 | L63: 55101 | M63: =_xlfn.TEXTJOIN("#",TRUE,F63:L63) -> 55001#55011#55021#55031#55041#55051#55101
E64: 2 | F64: =F63+1 -> 55002 | G64: 55012 | H64: 55022 | I64: 55032 | J64: 55042 | K64: 55052 | L64: 55102 | M64: =_xlfn.TEXTJOIN("#",TRUE,F64:L64) -> 55002#55012#55022#55032#55042#55052#55102
E65: 3 | F65: =F64+1 -> 55003 | G65: 55013 | H65: 55023 | I65: 55033 | J65: 55043 | K65: 55053 | L65: =L64+1 -> 55103 | M65: 55003#55013#55023#55033#55043#55053#55103
E66: 4 | F66: =F65+1 -> 55004 | G66: 55014 | H66: 55024 | I66: 55034 | J66: 55044 | K66: 55054 | L66: 55104 | M66: 55004#55014#55024#55034#55044#55054#55104
E67: 5 | F67: =F66+1 -> 55005 | G67: 55015 | H67: 55025 | I67: 55035 | J67: 55045 | K67: 55055 | L67: 55105 | M67: 55005#55015#55025#55035#55045#55055#55105
E68: 6 | F68: =F67+1 -> 55006 | G68: 55016 | H68: 55026 | I68: 55036 | J68: 55046 | K68: 55056 | L68: 55106 | M68: 55006#55016#55026#55036#55046#55056#55106
E69: 7 | F69: =F68+1 -> 55007 | G69: 55017 | H69: 55027 | I69: 55037 | J69: 55047 | K69: 55057 | L69: 55107 | M69: 55007#55017#55027#55037#55047#55057#55107
E70: 8 | F70: =F69+1 -> 55008 | G70: 55018 | H70: 55028 | I70: 55038 | J70: 55048 | K70: 55058 | L70: 55108 | M70: 55008#55018#55028#55038#55048#55058#55108

Sheet 发现者奖励
B2: 发现者奖励
B3: 21 | C3: 14 | D3: 16
B4: 0.2 | C4: 0.4 | D4: 0.4
B7: 601011 | C7: 210101 | D7: 601012 | E7: 210101 | I7: 601021 | J7: =C7+1 -> 210102 | K7: 601022 | L7: =E7+1 -> 210102 | P7: 601031 | Q7: =J7+1 -> 210103 | R7: 601032 | S7: =L7+1 -> 210103 | T7: 601033 | V7: 601034 | W7: =Q7 -> 210103
B8: 602011 | C8: 210201 | D8: 602012 | E8: 210201 | F8: 602013 | G8: 210201 | I8: 602021 | J8: =C8+1 -> 210202 | K8: 602022 | L8: 210202 | M8: 602023 | N8: =G8+1 -> 210202 | P8: 602031 | Q8: 210203 | R8: 602032 | S8: 210203 | T8: 602033 | U8: =N8+1 -> 210203 | V8: 602034 | W8: =Q8 -> 210203
B9: 603011 | C9: =C8+100 -> 210301 | D9: 603012 | E9: =E8+100 -> 210301 | F9: 603013 | G9: =G8+100 -> 210301 | I9: 603021 | J9: 210302 | K9: 603022 | L9: 210302 | M9: 603023 | N9: 210302 | P9: 603031 | Q9: 210303 | R9: 603032 | S9: 210303 | T9: 603033 | U9: 210303 | V9: 603034 | W9: 210303
B10: 604011 | C10: 210401 | D10: 604012 | E10: 210401 | F10: 604013 | G10: 210401 | I10: 604021 | J10: 210402 | K10: 604022 | L10: 210402 | M10: 604023 | N10: 210402 | P10: 604031 | Q10: 210403 | R10: 604032 | S10: 210403 | T10: 604033 | U10: 210403 | V10: 604034 | W10: 210403
B11: 605011 | C11: 210501 | D11: 605012 | E11: 210501 | F11: 605013 | G11: 210501 | I11: 605021 | J11: 210502 | K11: 605022 | L11: 210502 | M11: 605023 | N11: 210502 | P11: 605031 | Q11: 210503 | R11: 605032 | S11: 210503 | T11: 605033 | U11: 210503 | V11: 605034 | W11: 210503
B12: 606011 | C12: 210601 | D12: 606012 | E12: 210601 | F12: 606013 | G12: 210601 | I12: 606021 | J12: 210602 | K12: 606022 | L12: 210602 | M12: 606023 | N12: 210602 | P12: 606031 | Q12: 210603 | R12: 606032 | S12: 210603 | T12: 606033 | U12: 210603 | V12: 606034 | W12: 210603
B13: 607011 | C13: 210701 | D13: 607012 | E13: 210701 | F13: 607013 | G13: 210701 | I13: 607021 | J13: 210702 | K13: 607022 | L13: 210702 | M13: 607023 | N13: 210702 | P13: 607031 | Q13: 210703 | R13: 607032 | S13: 210703 | T13: 607033 | U13: 210703 | V13: 607034 | W13: 210703
B14: 608011 | C14: 210801 | D14: 608012 | E14: 210801 | F14: 608013 | G14: 210801 | I14: 608021 | J14: 210802 | K14: 608022 | L14: 210802 | M14: 608023 | N14: 210802 | P14: 608031 | Q14: 210803 | R14: 608032 | S14: 210803 | T14: 608033 | U14: 210803 | V14: 608034 | W14: 210803
B18: =_xlfn.TEXTJOIN("#",TRUE,B7:C7) -> 601011#210101 | D18: =_xlfn.TEXTJOIN("#",TRUE,D7:E7) -> 601012#210101 | F18: =_xlfn.TEXTJOIN("#",TRUE,F7:G7) ->  | G18: =_xlfn.TEXTJOIN("#",TRUE,G7:G7) ->  | I18: =_xlfn.TEXTJOIN("#",TRUE,I7:J7) -> 601021#210102 | K18: =_xlfn.TEXTJOIN("#",TRUE,K7:L7) -> 601022#210102 | P18: 601031#210103 | R18: =_xlfn.TEXTJOIN("#",TRUE,R7:S7) -> 601032#210103 | T18: =_xlfn.TEXTJOIN("#",TRUE,T7:U7) -> 601033 | V18: =_xlfn.TEXTJOIN("#",TRUE,V7:W7) -> 601034#210103
B19: =_xlfn.TEXTJOIN("#",TRUE,B8:C8) -> 602011#210201 | D19: =_xlfn.TEXTJOIN("#",TRUE,D8:E8) -> 602012#210201 | F19: =_xlfn.TEXTJOIN("#",TRUE,F8:G8) -> 602013#210201 | I19: =_xlfn.TEXTJOIN("#",TRUE,I8:J8) -> 602021#210202 | K19: 602022#210202 | M19: 602023#210202 | P19: =_xlfn.TEXTJOIN("#",TRUE,P8:Q8) -> 602031#210203 | R19: 602032#210203 | T19: 602033#210203 | V19: =_xlfn.TEXTJOIN("#",TRUE,V8:W8) -> 602034#210203
B20: 603011#210301 | D20: 603012#210301 | F20: 603013#210301 | I20: =_xlfn.TEXTJOIN("#",TRUE,I9:J9) -> 603021#210302 | K20: 603022#210302 | M20: 603023#210302 | P20: =_xlfn.TEXTJOIN("#",TRUE,P9:Q9) -> 603031#210303 | R20: 603032#210303 | T20: 603033#210303 | V20: 603034#210303
B21: 604011#210401 | D21: 604012#210401 | F21: 604013#210401 | I21: =_xlfn.TEXTJOIN("#",TRUE,I10:J10) -> 604021#210402 | K21: 604022#210402 | M21: 604023#210402 | P21: =_xlfn.TEXTJOIN("#",TRUE,P10:Q10) -> 604031#210403 | R21: 604032#210403 | T21: 604033#210403 | V21: 604034#210403
B22: 605011#210501 | D22: 605012#210501 | F22: 605013#210501 | I22: =_xlfn.TEXTJOIN("#",TRUE,I11:J11) -> 605021#210502 | K22: 605022#210502 | M22: 605023#210502 | P22: =_xlfn.TEXTJOIN("#",TRUE,P11:Q11) -> 605031#210503 | R22: 605032#210503 | T22: 605033#210503 | V22: 605034#210503
B23: 606011#210601 | D23: 606012#210601 | F23: 606013#210601 | I23: =_xlfn.TEXTJOIN("#",TRUE,I12:J12) -> 606021#210602 | K23: 606022#210602 | M23: 606023#210602 | P23: =_xlfn.TEXTJOIN("#",TRUE,P12:Q12) -> 606031#210603 | R23: 606032#210603 | T23: 606033#210603 | V23: 606034#210603
B24: 607011#210701 | D24: 607012#210701 | F24: 607013#210701 | I24: =_xlfn.TEXTJOIN("#",TRUE,I13:J13) -> 607021#210702 | K24: 607022#210702 | M24: 607023#210702 | P24: =_xlfn.TEXTJOIN("#",TRUE,P13:Q13) -> 607031#210703 | R24: 607032#210703 | T24: 607033#210703 | V24: 607034#210703
B25: 608011#210801 | D25: 608012#210801 | F25: 608013#210801 | I25: =_xlfn.TEXTJOIN("#",TRUE,I14:J14) -> 608021#210802 | K25: 608022#210802 | M25: 608023#210802 | P25: =_xlfn.TEXTJOIN("#",TRUE,P14:Q14) -> 608031#210803 | R25: 608032#210803 | T25: 608033#210803 | V25: 608034#210803
B30: =_xlfn.TEXTJOIN("|",TRUE,B18:F18) -> 601011#210101|601012#210101 | I30: =_xlfn.TEXTJOIN("|",TRUE,I18:M18) -> 601021#210102|601022#210102 | P30: =_xlfn.TEXTJOIN("|",TRUE,P18:V18) -> 601031#210103|601032#210103|601033|601034#210103
B31: =_xlfn.TEXTJOIN("|",TRUE,B19:F19) -> 602011#210201|602012#210201|602013#210201 | I31: 602021#210202|602022#210202|602023#210202 | P31: =_xlfn.TEXTJOIN("|",TRUE,P19:V19) -> 602031#210203|602032#210203|602033#210203|602034#210203
B32: 603011#210301|603012#210301|603013#210301 | I32: 603021#210302|603022#210302|603023#210302 | P32: 603031#210303|603032#210303|603033#210303|603034#210303
B33: 604011#210401|604012#210401|604013#210401 | I33: 604021#210402|604022#210402|604023#210402 | P33: 604031#210403|604032#210403|604033#210403|604034#210403
B34: 605011#210501|605012#210501|605013#210501 | I34: 605021#210502|605022#210502|605023#210502 | P34: 605031#210503|605032#210503|605033#210503|605034#210503
B35: 606011#210601|606012#210601|606013#210601 | I35: 606021#210602|606022#210602|606023#210602 | P35: 606031#210603|606032#210603|606033#210603|606034#210603
B36: 607011#210701|607012#210701|607013#210701 | I36: 607021#210702|607022#210702|607023#210702 | P36: 607031#210703|607032#210703|607033#210703|607034#210703
B37: 608011#210801|608012#210801|608013#210801 | I37: 608021#210802|608022#210802|608023#210802 | P37: 608031#210803|608032#210803|608033#210803|608034#210803
B42: =_xlfn.TEXTJOIN(",",TRUE,B30:P30) -> 601011#210101|601012#210101,601021#210102|601022#210102,601031#210103|601032#210103|601033|601034#210103
B43: =_xlfn.TEXTJOIN(",",TRUE,B31:P31) -> 602011#210201|602012#210201|602013#210201,602021#210202|602022#210202|602023#210202,602031#210203|602032#210203|602033#210203|602034#210203
B44: 603011#210301|603012#210301|603013#210301,603021#210302|603022#210302|603023#210302,603031#210303|603032#210303|603033#210303|603034#210303
B45: 604011#210401|604012#210401|604013#210401,604021#210402|604022#210402|604023#210402,604031#210403|604032#210403|604033#210403|604034#210403
B46: 605011#210501|605012#210501|605013#210501,605021#210502|605022#210502|605023#210502,605031#210503|605032#210503|605033#210503|605034#210503
B47: 606011#210601|606012#210601|606013#210601,606021#210602|606022#210602|606023#210602,606031#210603|606032#210603|606033#210603|606034#210603
B48: 607011#210701|607012#210701|607013#210701,607021#210702|607022#210702|607023#210702,607031#210703|607032#210703|607033#210703|607034#210703
B49: 608011#210801|608012#210801|608013#210801,608021#210802|608022#210802|608023#210802,608031#210803|608032#210803|608033#210803|608034#210803
C56: 110101 | D56: 120101 | E56: 130101 | F56: =_xlfn.TEXTJOIN("#",TRUE,C56:E56) -> 110101#120101#130101
C57: =C56+1 -> 110102 | D57: 120102 | E57: 130102 | F57: =_xlfn.TEXTJOIN("#",TRUE,C57:E57) -> 110102#120102#130102
C58: 110103 | D58: 120103 | E58: 130103 | F58: 110103#120103#130103
B59: =[2]RewardItemConfig!C2198&"#"&[2]RewardItemConfig!F2198 -> 4#20 | C59: =C56+100 -> 110201 | D59: =D56+100 -> 120201 | E59: =E56+100 -> 130201 | F59: 110201#120201#130201
B60: =[2]RewardItemConfig!C2199&"#"&[2]RewardItemConfig!F2199 -> 4#20 | C60: =C57+100 -> 110202 | D60: =D57+100 -> 120202 | E60: =E57+100 -> 130202 | F60: 110202#120202#130202
B61: =[2]RewardItemConfig!C2200&"#"&[2]RewardItemConfig!F2200 -> 4#20 | C61: 110203 | D61: 120203 | E61: 130203 | F61: 110203#120203#130203
B62: =[2]RewardItemConfig!C2201&"#"&[2]RewardItemConfig!F2201 -> 4#20 | C62: 110301 | D62: 120301 | E62: 130301 | F62: 110301#120301#130301
B63: =[2]RewardItemConfig!C2202&"#"&[2]RewardItemConfig!F2202 -> 4#20 | C63: 110302 | D63: 120302 | E63: 130302 | F63: 110302#120302#130302
B64: =[2]RewardItemConfig!C2203&"#"&[2]RewardItemConfig!F2203 -> 4#20 | C64: 110303 | D64: 120303 | E64: 130303 | F64: 110303#120303#130303
B65: =[2]RewardItemConfig!C2204&"#"&[2]RewardItemConfig!F2204 -> 4#20 | C65: 110401 | D65: 120401 | E65: 130401 | F65: 110401#120401#130401
B66: =[2]RewardItemConfig!C2205&"#"&[2]RewardItemConfig!F2205 -> 4#20 | C66: 110402 | D66: 120402 | E66: 130402 | F66: 110402#120402#130402
B67: =[2]RewardItemConfig!C2206&"#"&[2]RewardItemConfig!F2206 -> 4#20 | C67: 110403 | D67: 120403 | E67: 130403 | F67: 110403#120403#130403
B68: =[2]RewardItemConfig!C2207&"#"&[2]RewardItemConfig!F2207 -> 4#20 | C68: 110501 | D68: 120501 | E68: 130501 | F68: 110501#120501#130501
B69: =[2]RewardItemConfig!C2208&"#"&[2]RewardItemConfig!F2208 -> 4#20 | C69: 110502 | D69: 120502 | E69: 130502 | F69: 110502#120502#130502
B70: =[2]RewardItemConfig!C2209&"#"&[2]RewardItemConfig!F2209 -> 4#20 | C70: 110503 | D70: 120503 | E70: 130503 | F70: 110503#120503#130503
B71: =[2]RewardItemConfig!C2210&"#"&[2]RewardItemConfig!F2210 -> 4#20 | C71: 110601 | D71: 120601 | E71: 130601 | F71: 110601#120601#130601
B72: =[2]RewardItemConfig!C2211&"#"&[2]RewardItemConfig!F2211 -> 4#20 | C72: 110602 | D72: 120602 | E72: 130602 | F72: 110602#120602#130602
B73: =[2]RewardItemConfig!C2212&"#"&[2]RewardItemConfig!F2212 -> 4#20 | C73: 110603 | D73: 120603 | E73: 130603 | F73: 110603#120603#130603
B74: =[2]RewardItemConfig!C2213&"#"&[2]RewardItemConfig!F2213 -> 4#20 | C74: 110701 | D74: 120701 | E74: 130701 | F74: 110701#120701#130701
B75: =[2]RewardItemConfig!C2214&"#"&[2]RewardItemConfig!F2214 -> 4#20 | C75: 110702 | D75: 120702 | E75: 130702 | F75: 110702#120702#130702
B76: =[2]RewardItemConfig!C2215&"#"&[2]RewardItemConfig!F2215 -> 4#20 | C76: 110703 | D76: 120703 | E76: 130703 | F76: 110703#120703#130703
B77: =[2]RewardItemConfig!C2216&"#"&[2]RewardItemConfig!F2216 -> 4#20 | C77: 110801 | D77: 120801 | E77: 130801 | F77: 110801#120801#130801
B78: =[2]RewardItemConfig!C2217&"#"&[2]RewardItemConfig!F2217 -> 4#20 | C78: 110802 | D78: 120802 | E78: 130802 | F78: 110802#120802#130802
B79: =[2]RewardItemConfig!C2218&"#"&[2]RewardItemConfig!F2218 -> 4#20 | C79: 110803 | D79: 120803 | E79: 130803 | F79: 110803#120803#130803
B80: =[2]RewardItemConfig!C2219&"#"&[2]RewardItemConfig!F2219 -> 4#20
B81: =[2]RewardItemConfig!C2220&"#"&[2]RewardItemConfig!F2220 -> 4#20
B82: =[2]RewardItemConfig!C2221&"#"&[2]RewardItemConfig!F2221 -> 4#20
B83: =[2]RewardItemConfig!C2231&"#"&[2]RewardItemConfig!F2231 -> 4#20 | C83: =_xlfn.TEXTJOIN("|",TRUE,B59,B83,B107) -> 4#20|4#20|10010#1
B84: =[2]RewardItemConfig!C2232&"#"&[2]RewardItemConfig!F2232 -> 4#20 | C84: =_xlfn.TEXTJOIN("|",TRUE,B60,B84,B108) -> 4#20|4#20|10011#1
B85: =[2]RewardItemConfig!C2233&"#"&[2]RewardItemConfig!F2233 -> 4#20 | C85: 4#20|4#20|10012#1
B86: =[2]RewardItemConfig!C2234&"#"&[2]RewardItemConfig!F2234 -> 4#20 | C86: 4#20|4#20|10013#1
B87: =[2]RewardItemConfig!C2235&"#"&[2]RewardItemConfig!F2235 -> 4#20 | C87: 4#20|4#20|10014#1
B88: =[2]RewardItemConfig!C2236&"#"&[2]RewardItemConfig!F2236 -> 4#20 | C88: 4#20|4#20|10015#1
B89: =[2]RewardItemConfig!C2237&"#"&[2]RewardItemConfig!F2237 -> 4#20 | C89: 4#20|4#20|10016#1
B90: =[2]RewardItemConfig!C2238&"#"&[2]RewardItemConfig!F2238 -> 4#20 | C90: 4#20|4#20|10017#1
B91: =[2]RewardItemConfig!C2239&"#"&[2]RewardItemConfig!F2239 -> 4#20 | C91: 4#20|4#20|10018#1
B92: =[2]RewardItemConfig!C2240&"#"&[2]RewardItemConfig!F2240 -> 4#20 | C92: 4#20|4#20|10019#1
B93: =[2]RewardItemConfig!C2241&"#"&[2]RewardItemConfig!F2241 -> 4#20 | C93: 4#20|4#20|10020#1
B94: =[2]RewardItemConfig!C2242&"#"&[2]RewardItemConfig!F2242 -> 4#20 | C94: 4#20|4#20|10021#1
B95: =[2]RewardItemConfig!C2243&"#"&[2]RewardItemConfig!F2243 -> 4#20 | C95: 4#20|4#20|10022#1
B96: =[2]RewardItemConfig!C2244&"#"&[2]RewardItemConfig!F2244 -> 4#20 | C96: 4#20|4#20|10023#1
B97: =[2]RewardItemConfig!C2245&"#"&[2]RewardItemConfig!F2245 -> 4#20 | C97: 4#20|4#20|10024#1
B98: =[2]RewardItemConfig!C2246&"#"&[2]RewardItemConfig!F2246 -> 10001#1 | C98: 4#20|10001#1|10025#1
B99: =[2]RewardItemConfig!C2247&"#"&[2]RewardItemConfig!F2247 -> 10002#1 | C99: 4#20|10002#1|10026#1
B100: =[2]RewardItemConfig!C2248&"#"&[2]RewardItemConfig!F2248 -> 10003#1 | C100: 4#20|10003#1|10027#1
B101: =[2]RewardItemConfig!C2249&"#"&[2]RewardItemConfig!F2249 -> 10004#1 | C101: 4#20|10004#1|10028#1
B102: =[2]RewardItemConfig!C2250&"#"&[2]RewardItemConfig!F2250 -> 10005#1 | C102: 4#20|10005#1|10029#1
B103: =[2]RewardItemConfig!C2251&"#"&[2]RewardItemConfig!F2251 -> 10006#1 | C103: 4#20|10006#1|10030#1
B104: =[2]RewardItemConfig!C2252&"#"&[2]RewardItemConfig!F2252 -> 10007#1 | C104: 4#20|10007#1|10031#1
B105: =[2]RewardItemConfig!C2253&"#"&[2]RewardItemConfig!F2253 -> 10008#1 | C105: 4#20|10008#1|10032#1
B106: =[2]RewardItemConfig!C2254&"#"&[2]RewardItemConfig!F2254 -> 10009#1 | C106: 4#20|10009#1|10033#1
B107: =[2]RewardItemConfig!C2255&"#"&[2]RewardItemConfig!F2255 -> 10010#1
B108: =[2]RewardItemConfig!C2256&"#"&[2]RewardItemConfig!F2256 -> 10011#1
B109: =[2]RewardItemConfig!C2257&"#"&[2]RewardItemConfig!F2257 -> 10012#1
B110: =[2]RewardItemConfig!C2258&"#"&[2]RewardItemConfig!F2258 -> 10013#1
B111: =[2]RewardItemConfig!C2259&"#"&[2]RewardItemConfig!F2259 -> 10014#1
B112: =[2]RewardItemConfig!C2260&"#"&[2]RewardItemConfig!F2260 -> 10015#1
B113: =[2]RewardItemConfig!C2261&"#"&[2]RewardItemConfig!F2261 -> 10016#1
B114: =[2]RewardItemConfig!C2262&"#"&[2]RewardItemConfig!F2262 -> 10017#1
B115: =[2]RewardItemConfig!C2263&"#"&[2]RewardItemConfig!F2263 -> 10018#1
B116: =[2]RewardItemConfig!C2264&"#"&[2]RewardItemConfig!F2264 -> 10019#1
B117: =[2]RewardItemConfig!C2265&"#"&[2]RewardItemConfig!F2265 -> 10020#1
B118: =[2]RewardItemConfig!C2266&"#"&[2]RewardItemConfig!F2266 -> 10021#1
B119: =[2]RewardItemConfig!C2267&"#"&[2]RewardItemConfig!F2267 -> 10022#1
B120: =[2]RewardItemConfig!C2268&"#"&[2]RewardItemConfig!F2268 -> 10023#1
B121: =[2]RewardItemConfig!C2269&"#"&[2]RewardItemConfig!F2269 -> 10024#1
B122: =[2]RewardItemConfig!C2270&"#"&[2]RewardItemConfig!F2270 -> 10025#1
B123: =[2]RewardItemConfig!C2271&"#"&[2]RewardItemConfig!F2271 -> 10026#1
B124: =[2]RewardItemConfig!C2272&"#"&[2]RewardItemConfig!F2272 -> 10027#1
B125: =[2]RewardItemConfig!C2273&"#"&[2]RewardItemConfig!F2273 -> 10028#1
B126: =[2]RewardItemConfig!C2274&"#"&[2]RewardItemConfig!F2274 -> 10029#1
B127: =[2]RewardItemConfig!C2275&"#"&[2]RewardItemConfig!F2275 -> 10030#1
B128: =[2]RewardItemConfig!C2276&"#"&[2]RewardItemConfig!F2276 -> 10031#1
B129: =[2]RewardItemConfig!C2277&"#"&[2]RewardItemConfig!F2277 -> 10032#1
B130: =[2]RewardItemConfig!C2278&"#"&[2]RewardItemConfig!F2278 -> 10033#1
